Cogmind - Beta 13 @@@ ROGUE MODE // 2024.03.05 @ 09:01:55 Player: Dosh Result: Establishing 0b11! Performance ------------- Evolutions (9) 4500 Regions Visited (39) 7800 Robots Destroyed (506) 2530 Value Destroyed (17627) 17627 Prototype IDs (311) 6220 Alien Tech Used (1) 200 Bonus (32622) 32622 TOTAL SCORE: 71499 Bonus ------- High Alert Combat Kills 1229 Follower Combat Kills 2433 Entered Garrisons 400 Network Hubs Disabled 400 Aligned with FarCom 300 Acquired ECA 300 Met Zhirov 300 Met Warlord at Base 500 MAIN.C Attacked Warlord 500 Warlord Defense Kills 824 Built Enhanced Grunts 300 A7 Reached Mainframe 300 Met Warlord at Research 2000 Met MAIN.C 5000 Destroyed MAIN.C Shell 5000 Destroyed MAIN.C 10000 Met Warlord at Command 2000 Win 3000 Friendly Fire -2164 Cogmind --------- Core Integrity 912/1600 Matter 300/300 Energy 189/190 System Corruption 4% Temperature Cool (3) Movement Flying (32) Location 0b11 Command Parts ------- > --- POWER (2) -------- Light Quantum Reactor > --- PROPULSION (7) --- Impulse Thruster Impulse Thruster Cooled Impulse Thruster > --- UTILITY (12) ----- Quantum Shading Machine Experimental Melee Analysis Suite Experimental Melee Analysis Suite Femtoactuators Advanced System Shield > --- WEAPON (4) ------- Nanosword Nanosword > --- INVENTORY (5) ---- Advanced Cooling System Advanced Force Booster Transdimensional Reconstructor Heavy Phase Cannon Vortex Lance (12) Peak State ------------ > --- POWER ------------ Mini Fusion Reactor Graviton Reactor > --- PROPULSION ------- Cooled Impulse Thruster Cooled Impulse Thruster Cooled Impulse Thruster Cooled Impulse Thruster Cooled Impulse Thruster Cooled Impulse Thruster Cooled Impulse Thruster > --- UTILITY ---------- Experimental Power Amplifier Quantum Shading Machine Experimental Melee Analysis Suite Experimental Melee Analysis Suite Femtoactuators Experimental Actuator Array Advanced Force Booster Advanced Reaction Control System Experimental Phase Shifter Experimental Utility Shielding Advanced Powered Armor Advanced System Shield > --- WEAPON ----------- Nanosword Nanosword Vortex Lance Vortex Lance > --- INVENTORY -------- Advanced Cooling System Experimental Utility Shielding Transdimensional Reconstructor Heavy Phase Cannon [Rating: 219] Favorites ----------- Power Micro Fission Core Engine Improved Deuterium Engine Power Core Micro Fission Core Reactor Mini Fusion Reactor Propulsion Cooled Nuclear Pulse Thruster Treads Light Treads Flight Unit Cooled Nuclear Pulse Thruster Utility Advanced Hacking Suite Device Structural Scanner Storage Medium Storage Unit Processor Experimental Melee Analysis Suite Hackware Advanced Hacking Suite Protection Layered Light Armor Plating Weapon Nanosword Energy Gun Medium Laser Energy Cannon Compact HERF Cannon Ballistic Gun Enhanced Autogun Launcher Grenade Launcher Special Weapon Improved Remote Datajack Slashing Weapon Nanosword Piercing Weapon Vortex Lance Special Melee Weapon Improved Datajack Build | -11 -10 -10 -10 -9 -8 -8 -8 -7 -7 -7 -7 -7 -7 -6 -6 -6 -6 -6 -6 -6 -6 -5 -5 -5 -5 -5 -5 -4 -4 -4 -4 -4 -4 -4 -3 -3 -2 -1 -1 ------- Run | Yrd Mat Min Exi Min Mat Gar Mat Fac Was Fac Low Low Zio Pro Fac Was Fac Ext Cet Arc Hub Fac Was Fac Upp Upp Zhi Pro Fac Gar Fac Upp Upp War Pro Res Res Acc Com Slots Evolved 18 | . . . . . 4 . . 2 . . . . . . 2 . . . . . . 2 . . . . . . 2 . . . . . . 2 2 2 . Power 1 | . . . . . . . . . . . . . . . 1 . . . . . . . . . . . . . . . . . . . . . . . . Propulsion 5 | . . . . . 1 . . 1 . . . . . . 1 . . . . . . 1 . . . . . . . . . . . . . 1 . . . Utility 10 | . . . . . 3 . . 1 . . . . . . . . . . . . . 1 . . . . . . 2 . . . . . . 1 1 1 . Weapon 2 | . . . . . . . . . . . . . . . . . . . . . . . . . . . . . . . . . . . . . 1 1 . Parts Attached 664 | 6 10 . 2 3 28 16 16 36 1 32 3 . 4 2 47 . 57 7 4 4 15 64 4 49 5 10 6 14 57 1 43 4 4 14 . 33 9 16 38 Power 57 | 1 2 . . 2 1 . 2 2 . 1 . . . . 12 . 1 1 . . . 8 . 6 . . 2 . 4 . 4 . . 3 . . . 1 4 Engine 6 | 1 2 . . 1 1 . 1 . . . . . . . . . . . . . . . . . . . . . . . . . . . . . . . . Core 31 | . . . . 1 . . 1 2 . 1 . . . . 11 . . 1 . . . 4 . 6 . . 1 . 2 . . . . 1 . . . . . Reactor 20 | . . . . . . . . . . . . . . . 1 . 1 . . . . 4 . . . . 1 . 2 . 4 . . 2 . . . 1 4 Propulsion 135 | 2 1 . . . 11 1 2 11 . 13 . . . . 9 . 10 2 . . 2 18 . 7 . . 1 . 17 . 7 . . 2 . 3 3 3 10 Treads 23 | 2 1 . . . 10 1 2 . . . . . . . . . 2 2 . . 2 . . . . . . . . . . . . . . . . . 1 Leg . | . . . . . . . . . . . . . . . . . . . . . . . . . . . . . . . . . . . . . . . . Wheel . | . . . . . . . . . . . . . . . . . . . . . . . . . . . . . . . . . . . . . . . . Hover . | . . . . . . . . . . . . . . . . . . . . . . . . . . . . . . . . . . . . . . . . Flight 112 | . . . . . 1 . . 11 . 13 . . . . 9 . 8 . . . . 18 . 7 . . 1 . 17 . 7 . . 2 . 3 3 3 9 Utility 267 | 1 1 . 1 1 10 3 5 19 . 10 . . 4 . 13 . 17 2 3 2 4 25 4 25 4 3 3 10 21 1 14 4 4 6 . 21 4 6 16 Device 150 | . . . . . 2 2 3 11 . 5 . . 2 . 8 . 7 2 2 2 2 11 2 12 2 2 2 8 13 1 8 3 4 5 . 12 2 3 12 Storage 13 | 1 1 . 1 . . . . 2 . 1 . . . . 1 . 3 . . . . 1 . 2 . . . . . . . . . . . . . . . Processor 12 | . . . . . 2 . . . . 1 . . . . . . 2 . . . . 1 . . 1 . . . . . 1 1 . . . 1 . 2 . Hackware 34 | . . . . . . 1 . 5 . 2 . . 2 . 2 . 1 . . . 1 5 . 7 . . . . 5 . . . . . . 2 . 1 . Protection 58 | . . . . 1 6 . 2 1 . 1 . . . . 2 . 4 . 1 . 1 7 2 4 1 1 1 2 3 . 5 . . 1 . 6 2 . 4 Artifact . | . . . . . . . . . . . . . . . . . . . . . . . . . . . . . . . . . . . . . . . . Weapon 205 | 2 6 . 1 . 6 12 7 4 1 8 3 . . 2 13 . 29 2 1 2 9 13 . 11 1 7 . 4 15 . 18 . . 3 . 9 2 6 8 Energy Gun 2 | 1 . . . . . . . . . . . . . . 1 . . . . . . . . . . . . . . . . . . . . . . . . Energy Cannon 43 | . . . . . . . . . . . . . . . 2 . 11 1 . 1 6 3 . 3 . . . . 2 . 4 . . . . 4 1 3 2 Ballistic Gun 21 | 1 3 . 1 . 4 6 5 . . . . . . . . . . 1 . . . . . . . . . . . . . . . . . . . . . Ballistic Cannon . | . . . . . . . . . . . . . . . . . . . . . . . . . . . . . . . . . . . . . . . . Launcher 47 | . 3 . . . . 3 . 1 1 3 . . . 1 3 . 5 . . . 1 2 . 3 . 4 . 2 4 . 6 . . 1 . 3 . . 1 Special Weapon 1 | . . . . . . . . . . . . . . . . . . . . . . . . . . . . . 1 . . . . . . . . . . Impact Weapon . | . . . . . . . . . . . . . . . . . . . . . . . . . . . . . . . . . . . . . . . . Slashing Weapon 81 | . . . . . 2 3 1 2 . 5 3 . . 1 5 . 12 . 1 1 2 7 . 5 1 3 . 2 7 . 8 . . 1 . 2 1 3 3 Piercing Weapon 3 | . . . . . . . . . . . . . . . . . . . . . . . . . . . . . . . . . . 1 . . . . 2 Special Melee Weapon 7 | . . . . . . . 1 1 . . . . . . 2 . 1 . . . . 1 . . . . . . 1 . . . . . . . . . . Unidentified Prototypes 39 | . . . . . 2 . 1 1 1 3 . . . . 5 . 5 1 1 . 1 5 1 . . . 3 1 . . 1 . . 4 . 1 . 1 1 Corrupted Parts 1 | . . . . . . . . . . . . . . . . . . . . . 1 . . . . . . . . . . . . . . . . . . System Corruption 11 | . . . . . . . . . . . . . . . . . . . . . 11 . . . . . . . . . . . . . . . . . . Parts Lost 41 | . 1 . . . 6 . 3 5 . 1 . . . . 1 . 1 . . . 2 2 . 2 . . . . . . . . . . . . . . 17 Power 10 | . 1 . . . 1 . 2 . . . . . . . 1 . 1 . . . . 2 . . . . . . . . . . . . . . . . 2 Propulsion 14 | . . . . . 3 . . 3 . . . . . . . . . . . . . . . . . . . . . . . . . . . . . . 8 Utility 16 | . . . . . 2 . 1 2 . 1 . . . . . . . . . . 2 . . 2 . . . . . . . . . . . . . . 6 Weapon 1 | . . . . . . . . . . . . . . . . . . . . . . . . . . . . . . . . . . . . . . . 1 Highest Loss Streak 15 | . 1 . . . 2 . 1 2 . 1 . . . . 1 . 1 . . . 1 1 . 1 . . . . . . . . . . . . . . 15 To Critical Strikes . | . . . . . . . . . . . . . . . . . . . . . . . . . . . . . . . . . . . . . . . . Average Slot Usage (%) 93 | . 87 100 97 100 96 100 99 91 92 90 92 92 91 91 91 100 94 75 80 79 79 97 100 96 100 100 96 97 99 100 99 100 100 99 100 99 93 89 87 Engine 3 | . 13 14 14 13 8 9 4 . . . . . . . 1 . . . . . . 1 . . . . . . . . . . . . . . . . . Core 4 | . . . . . . . 4 7 7 6 7 7 7 7 7 13 10 6 6 6 6 8 5 9 11 11 11 11 4 5 5 5 5 2 . . . . . Reactor 2 | . . . . . . . . . . . . . . . . . . 6 6 6 6 . 5 1 . . . . 4 5 4 5 5 7 10 9 8 7 7 Treads 10 | . 28 28 28 28 26 27 27 . . . . . . . . . . 15 20 20 19 . . . . . . . . . . . . . . . . . . Flight 17 | . . . . . . . . 29 30 29 30 30 30 30 32 33 30 . . . . 32 35 32 35 35 35 35 30 31 30 31 31 31 31 32 30 27 26 Device 7 | . . . . . 4 9 11 7 7 2 7 7 6 7 5 6 2 6 5 5 6 5 5 7 5 4 5 10 13 15 11 10 10 10 15 13 15 15 16 Storage 7 | . 16 28 25 14 9 9 9 3 7 7 7 7 7 7 6 6 6 6 6 6 6 5 5 5 5 5 5 5 5 5 5 5 5 5 5 4 4 4 3 Processor 1 | . . . . . 7 1 . . . . . . . . . . . . . . . . . . 5 5 5 5 1 . 1 4 5 1 . 4 4 5 8 Hackware 15 | . . . . . . 7 9 28 30 30 23 23 23 23 22 26 25 13 13 13 12 22 23 25 17 17 17 17 22 21 21 21 21 21 21 16 13 12 10 Protection 6 | . . . . 14 21 18 15 3 . 1 7 7 7 6 2 . 2 6 7 6 6 3 5 . 4 5 2 . 3 5 6 5 5 7 5 7 8 8 7 Energy Cannon 1 | . . . . . . . . . . . . . . . . . 1 13 10 6 12 . . . . . . . . . 2 . . . . 3 . . . Ballistic Gun 4 | . 20 . 2 14 17 14 17 . . . . . . . . . . . . . . . . . . . . . . . . . . . . . . . . Launcher 2 | . 7 28 26 14 . 1 . . . . . . . . . . . . . . . . . . . . . . . . . 5 5 3 5 . . . . Slashing Weapon 4 | . . . . . . 2 . 6 7 6 7 7 7 6 5 6 8 . 2 5 . 9 11 10 10 10 10 8 9 10 7 5 5 6 5 4 8 7 7 Naked Turns . | . . . . . . . . . . . . . . . . . . . . . . . . . . . . . . . . . . . . . . . . Heaviest Build 163 | 11 96 96 96 63 74 75 75 24 20 27 23 22 22 25 33 23 147 157 163 158 159 136 36 44 37 42 36 44 50 51 62 55 52 62 57 67 70 70 85 Greatest Support 180 | 40 40 40 40 40 62 62 62 28 20 28 23 23 23 26 43 45 150 180 180 180 180 155 36 57 45 48 36 48 63 63 74 74 62 62 74 82 79 79 81 Greatest Overweight (x) 8 | . 2 2 2 1 3 1 1 1 . 1 . . . . . . 8 1 1 . 1 2 . 1 1 1 . 1 4 . 2 . . . . 2 . 3 1 Average Overweight (x) . | . . 2 1 1 1 1 . . . . . . . . . . . . . . . . . . . . . . . . . . . . . . . . . Largest Inventory Capacity 25 | 8 25 25 25 20 20 20 20 20 10 10 10 10 10 10 10 10 25 25 25 25 25 25 10 15 15 15 15 15 15 15 15 15 15 15 15 15 15 15 15 Average Capacity 16 | 7 11 25 24 20 20 20 20 7 10 9 10 10 10 10 10 10 10 25 25 25 25 10 10 11 15 15 15 15 15 15 15 15 15 15 15 15 15 15 13 Most Carried 25 | 2 11 12 15 19 20 20 20 20 7 10 10 10 10 9 10 10 25 25 25 25 25 25 10 15 15 15 15 15 15 14 15 15 15 15 15 15 15 15 15 Average Carried 14 | . 7 11 12 14 19 19 19 5 6 9 10 9 9 8 9 9 9 23 24 25 24 10 10 9 15 15 14 14 13 14 14 15 15 14 15 14 14 14 13 Final Capacity 25 | 8 25 25 20 20 20 20 20 10 10 10 10 10 10 10 10 10 25 25 25 25 25 10 10 15 15 15 15 15 15 15 15 15 15 15 15 15 15 15 5 Final Carried 25 | 2 11 12 13 19 20 20 20 5 7 10 10 10 8 9 9 10 23 25 25 25 23 10 10 15 15 15 15 15 14 14 15 15 15 15 15 15 15 15 5 Class Distribution -------------------- 29% | Hacker-Sprinter 17% | Scavenger-Mutant 14% | Hacker-Mutant 13% | Mutant 12% | Wizard-Sprinter 4% | Machinist-Sprinter 3% | Machinist-Scout Dominant Class ---------------- Mutant | -10/Materials Mutant | -10/Mines Mutant | -10/Exiles Mutant | -9/Mines Scavenger-Mutant | -8/Materials Scavenger-Mutant | -8/Garrison Scavenger-Mutant | -8/Materials Hacker-Sprinter | -7/Factory Hacker-Sprinter | -7/Waste Hacker-Sprinter | -7/Factory Hacker-Sprinter | -7/Lower Caves Hacker-Sprinter | -7/Lower Caves Hacker-Sprinter | -7/Zion Hacker-Sprinter | -6/Proximity Caves Hacker-Sprinter | -6/Factory Hacker-Sprinter | -6/Waste Hacker-Sprinter | -6/Factory Hacker-Mutant | -6/Extension Hacker-Mutant | -6/Cetus Hacker-Mutant | -6/Archives Hacker-Mutant | -6/Hub_04(d) Hacker-Sprinter | -5/Factory Hacker-Sprinter | -5/Waste Wizard-Sprinter | -5/Factory Hacker-Sprinter | -5/Upper Caves Hacker-Sprinter | -5/Upper Caves Hacker-Sprinter | -5/Zhirov Hacker-Mutant | -4/Proximity Caves Wizard-Sprinter | -4/Factory Wizard-Sprinter | -4/Garrison Wizard-Sprinter | -4/Factory Wizard-Sprinter | -4/Upper Caves Wizard-Sprinter | -4/Upper Caves Wizard-Sprinter | -4/Warlord Wizard-Sprinter | -3/Proximity Caves Machinist-Scout | -3/Research Machinist-Scout | -2/Research Machinist-Scout | -1/Access Machinist-Sprinter | -1/Command Resources | -11 -10 -10 -10 -9 -8 -8 -8 -7 -7 -7 -7 -7 -7 -6 -6 -6 -6 -6 -6 -6 -6 -5 -5 -5 -5 -5 -5 -4 -4 -4 -4 -4 -4 -4 -3 -3 -2 -1 -1 ----------- Run | Yrd Mat Min Exi Min Mat Gar Mat Fac Was Fac Low Low Zio Pro Fac Was Fac Ext Cet Arc Hub Fac Was Fac Upp Upp Zhi Pro Fac Gar Fac Upp Upp War Pro Res Res Acc Com Matter Collected 12816 | 214 492 120 . 30 1299 725 1416 300 . 493 20 10 22 138 598 . 917 135 30 50 203 838 40 735 33 39 313 179 923 . 759 71 194 255 3 582 80 125 435 Remotely . | . . . . . . . . . . . . . . . . . . . . . . . . . . . . . . . . . . . . . . . . Salvage Created 20313 | . 726 209 . . 1458 757 1809 468 . 405 42 . . 262 1441 . 1018 690 607 74 922 854 353 943 . 39 319 403 1566 . 810 . 210 144 . 872 75 148 2689 Parts 1087 | . 46 22 . . 105 40 143 27 . 44 1 . . 20 64 . 64 32 23 8 37 48 17 42 . 5 2 13 58 . 65 . 7 1 . 47 5 8 93 Haulers Intercepted 29 | . 2 . . . 3 . 5 . . . . . . 1 6 . . . . . . 1 . 3 . . . 1 7 . . . . . . . . . . Recyclers Shooed 4 | . . . . . 2 . . . . . . . . . 1 . . . . . 1 . . . . . . . . . . . . . . . . . . Parts Field Recycled . | . . . . . . . . . . . . . . . . . . . . . . . . . . . . . . . . . . . . . . . . Retrieved Matter . | . . . . . . . . . . . . . . . . . . . . . . . . . . . . . . . . . . . . . . . . Parts Self-Destructed 47 | . . . . . . . . . . . 1 3 . 22 . . . . . . . . . . . 5 1 11 . . . . 4 . . . . . . Prevented 1 | . . . . . . . . . . . . . . 1 . . . . . . . . . . . . . . . . . . . . . . . . . Kills | -11 -10 -10 -10 -9 -8 -8 -8 -7 -7 -7 -7 -7 -7 -6 -6 -6 -6 -6 -6 -6 -6 -5 -5 -5 -5 -5 -5 -4 -4 -4 -4 -4 -4 -4 -3 -3 -2 -1 -1 ------- Run | Yrd Mat Min Exi Min Mat Gar Mat Fac Was Fac Low Low Zio Pro Fac Was Fac Ext Cet Arc Hub Fac Was Fac Upp Upp Zhi Pro Fac Gar Fac Upp Upp War Pro Res Res Acc Com Combat Hostiles Destroyed 300 | . 15 9 . . 31 16 29 6 . 3 1 . . 5 8 . 17 8 9 . 11 8 . 19 . 6 . 10 17 . 11 . 4 6 . 20 . . 31 Melee 67 | . . . . . . . . 6 . 1 1 . . 1 2 . 4 . . . . 4 . 2 . 2 . 2 4 . 2 . . . . 9 . . 27 Guns 83 | . 10 . . . 28 16 29 . . . . . . . . . . . . . . . . . . . . . . . . . . . . . . . . Cannons 11 | . . . . . . . . . . . . . . . . . . 2 1 . 6 . . . . . . . . . 1 . . . . . . . 1 AOE 125 | . 5 9 . . 3 . . . . 2 . . . 4 6 . 13 . 3 . 2 4 . 17 . 4 . 8 13 . 8 . 4 6 . 11 . . 3 Classes Destroyed 21 | . 8 . . . 4 1 1 1 . . . . . 2 2 . . . . . . . 1 . . . . . . . . . 1 . . . . . . Worker 22 | . 1 1 . . 3 . 4 . . 1 . . . . 1 . 2 1 . . 3 1 . 1 . . . . 2 . 1 . . . . . . . . Builder 33 | . 1 . . . 3 . 4 . . 8 . . . . . . . . . . 3 4 . 3 . . . . 1 . 4 . . . . 1 . 1 . Tunneler 4 | . . . . . . . . . . . . . . . 2 . 2 . . . . . . . . . . . . . . . . . . . . . . Hauler 29 | . 2 . . . 3 . 5 . . . . . . 1 6 . . . . . . 1 . 3 . . . 1 7 . . . . . . . . . . Recycler 17 | . 1 1 . . 2 . 1 1 . . . . . . 3 . 3 . . . 1 1 . . . . . . 1 . 2 . . . . . . . . Minesweeper 1 | . . . . . . . . . . . . . . . . . . . . . . . . . . . . . . . . . 1 . . . . . . Mechanic 2 | . . . . . . . 1 . . . . . . 1 . . . . . . . . . . . . . . . . . . . . . . . . . Operator 18 | . 1 . . . 1 . 1 1 . 1 . . . . 2 . 1 2 . 2 2 1 . . . . . . . . . . . . . 1 . . 2 Drone 2 | . . . . . . . . . . . . . . 1 1 . . . . . . . . . . . . . . . . . . . . . . . . Watcher 75 | . 2 . . . 1 . 3 5 . 4 . . . . 6 . 6 2 . . 4 7 . 5 . . . . 11 . 8 . . . . 4 2 3 2 Swarmer 103 | . 2 6 . . 11 3 5 4 . . . . . . 3 . 7 . . . 3 . . 8 . 6 . 4 13 . 7 . . . . 12 . . 9 Cutter 7 | . . . . . . . . . . . . . . . 1 . . . . . 2 3 . . . . . . . . 1 . . . . . . . . Grunt 108 | . 13 3 . . 9 7 14 1 . 3 . . . . 2 . 7 3 5 . . 5 . 10 . . . 5 4 . 2 . 4 . . 5 . . 6 Brawler 8 | . . . . . . 1 1 . . . . . . . 1 . . . 1 . 1 . . 1 . . . . . . . . . 2 . . . . . Duelist 5 | . . . . . 1 . . . . . . . . . . . 2 . . . . . . . . . . . . . . . . 1 . . . . 1 Protector 3 | . . . . . . . . . . . . . . 1 . . . 1 . . . . . . . . . . . . . . . 1 . . . . . Sentry 29 | . . . . . 7 5 8 . . . . . . . . . . 4 . . 3 . . . . . . 1 . . 1 . . . . . . . . Specialist 3 | . . . . . 2 . . . . . . . . 1 . . . . . . . . . . . . . . . . . . . . . . . . . Hunter 4 | . . . . . 1 . 1 . . . . . . 1 . . . . . . 1 . . . . . . . . . . . . . . . . . . Programmer 24 | . . . . . . . . 1 . . 1 . . 1 . . 1 . . . 1 . . . . . . . . . 1 . . 2 . 3 . . 13 Cetus Guard 3 | . . . . . . . . . . . . . . . . . . . 3 . . . . . . . . . . . . . . . . . . . . Martyr 5 | . . . . . . . . . . . . . . . . . . . . . . . 5 . . . . . . . . . . . . . . . . Best Kill Streak 9 | . 4 6 . . 6 7 5 5 . 3 1 . . 6 4 . 5 2 6 1 3 6 . 8 . 5 . 9 6 . 5 . 4 6 . 5 1 1 7 Combat Bots Only 9 | . 3 5 . . 4 7 5 5 . 2 1 . . 4 3 . 4 2 6 . 2 4 . 8 . 5 . 9 5 . 4 . 4 6 . 5 . . 7 Max Kills in Single Turn 5 | . 2 4 . . 3 2 2 1 . 2 1 . . 4 3 . 3 1 3 1 3 3 1 4 . 1 . 2 5 . 3 . 2 3 . 3 1 1 3 Gunslinging 1 | . . . . . 1 1 . . . . . . . . . . . . . . . . . . . . . . . . . . . . . . . . . Exploded 4 | . 1 3 . . 2 . . . . 1 . . . 3 3 . 3 . 3 . 2 3 . 4 . 1 . 2 3 . 2 . 2 3 . 3 . . 3 Melee 2 | . . . . . . . . 1 . 1 1 . . 1 1 . 1 . . . . 2 . 1 . 1 . 1 1 . 1 . . . . 1 . . 1 Uniques/NPCs Destroyed 2 | . . . . . . . . . . . . . . . . . . . . . . . . . . . . . . . . . . . . . . . 2 MAIN.C Shell (-1/Command) MAIN.C (-1/Command) Combat | -11 -10 -10 -10 -9 -8 -8 -8 -7 -7 -7 -7 -7 -7 -6 -6 -6 -6 -6 -6 -6 -6 -5 -5 -5 -5 -5 -5 -4 -4 -4 -4 -4 -4 -4 -3 -3 -2 -1 -1 -------- Run | Yrd Mat Min Exi Min Mat Gar Mat Fac Was Fac Low Low Zio Pro Fac Was Fac Ext Cet Arc Hub Fac Was Fac Upp Upp Zhi Pro Fac Gar Fac Upp Upp War Pro Res Res Acc Com Hostile Shots Fired 1294 | . 62 15 . . 186 70 108 96 . 21 5 . . 7 57 . 48 82 18 7 142 28 . 21 . 27 . 22 62 . 19 5 . . . 17 . 3 166 Missed 513 | . 15 4 . . 57 20 34 50 . 14 2 . . 3 30 . 29 18 5 2 48 13 . 9 . 8 . 7 36 . 12 4 . . . 7 . 2 84 Damage Taken 12583 | . 651 230 . 19 1721 481 788 594 . 71 48 . . 76 358 . 299 376 152 91 1203 364 . 210 . 350 . 285 463 . 252 . . 36 . 224 . 23 3218 Core 2177 | . 151 59 . 19 296 18 28 233 . 21 . . . 17 68 . 78 9 9 29 122 48 . 84 . 73 . 49 37 . . . . 18 . 23 . . 688 Absorbed by Shields 826 | . . . . . 108 185 296 . . . . . . . 14 . 5 112 106 . . . . . . . . . . . . . . . . . . . . Reduced by Siege Mode 46 | . . . . . . . . . . . . . . . . . . 17 14 . 15 . . . . . . . . . . . . . . . . . . Redirected to Shielding 601 | . . . . . . . . . . . . . . . . . . . . . . . . . . 48 . . . . . . . . . 22 . 20 511 Ignored by Resistances 571 | . . . . . . . . . . . . . . . . . . 100 45 29 397 . . . . . . . . . . . . . . . . . . Regen/Repaired (Parts) 2881 | . 68 . . . 185 . . 8 . 70 . . . . 258 . 247 . . . . 335 . 359 . . . . 716 . 315 . . . . . 54 53 213 Core Remaining (%) 69 | 100 . . . 8 . . 37 . . . . . . 61 . . . . . . 62 . . . . . . 74 . . . . . . 95 98 100 . 57 Volleys Fired 711 | . 52 5 . . 137 62 137 . . 2 . . . 4 8 . 36 31 12 5 40 14 . 18 . 7 . 6 18 . 44 . 5 5 . 37 3 6 17 Largest 2 | . 2 2 . . 2 2 2 . . 1 . . . 1 1 . 1 2 2 2 2 1 . 1 . 1 . 1 1 . 1 . 1 1 . 1 1 1 1 Hottest 188 | . 53 60 . . 56 50 50 . . 46 . . . 46 90 . 90 188 188 188 188 90 . 90 . 80 . 46 90 . 90 . 80 80 . 90 90 90 90 Shots Fired 1189 | . 104 10 . . 277 123 275 . . 2 . . . 4 8 . 36 64 24 10 72 14 . 18 . 7 . 6 18 . 44 . 5 5 . 37 3 6 17 Gun 760 | . 94 . . . 268 123 275 . . . . . . . . . . . . . . . . . . . . . . . . . . . . . . . . Cannon 299 | . . . . . . . . . . . . . . . 5 . 20 64 24 10 71 8 . 8 . . . . 8 . 29 . . . . 27 3 6 16 Launcher 129 | . 10 10 . . 9 . . . . 2 . . . 4 3 . 16 . . . 1 6 . 10 . 7 . 6 9 . 15 . 5 5 . 10 . . 1 Special 1 | . . . . . . . . . . . . . . . . . . . . . . . . . . . . . 1 . . . . . . . . . . Kinetic 760 | . 94 . . . 268 123 275 . . . . . . . . . . . . . . . . . . . . . . . . . . . . . . . . Thermal 140 | . . . . . . . . . . . . . . . 5 . 20 . . . 10 8 . 8 . . . . 8 . 29 . . . . 27 3 6 16 Explosive 129 | . 10 10 . . 9 . . . . 2 . . . 4 3 . 16 . . . 1 6 . 10 . 7 . 6 9 . 15 . 5 5 . 10 . . 1 Electromagnetic 159 | . . . . . . . . . . . . . . . . . . 64 24 10 61 . . . . . . . . . . . . . . . . . . Robot Hit Streak 18 | . 7 2 . . 11 18 11 . . 3 . . . 4 6 . 3 9 10 4 11 13 . 14 . . . 3 4 . 5 . . . . . . . 4 Robot Miss Streak 6 | . 3 2 . . 5 4 4 . . . . . . . 3 . 6 6 2 2 4 . . . . . . 1 . . . . . . . . . . 1 Penetration Max . | . . . . . . . . . . . . . . . . . . . . . . . . . . . . . . . . . . . . . . . . Secondary Targets 9 | . . . . . 2 4 3 . . . . . . . . . . . . . . . . . . . . . . . . . . . . . . . . Max Gunslinging Chain 1 | . . . . . 1 1 1 . . . . . . . . . . . . . . . . . . . . . . . . . . . . . . . . Shots Hit Robots 1011 | . 65 2 . . 162 75 162 29 . 22 4 . . 5 49 . 27 40 19 10 40 30 9 20 . 2 5 11 52 . 22 . 2 . . 25 4 7 111 Core Hits 679 | . 32 15 . . 79 25 77 11 . 15 1 . . 19 29 . 41 10 10 3 24 22 5 43 . 5 1 21 45 . 38 . 13 9 . 37 2 3 44 Critical Kills 5 | . . . . . 2 2 1 . . . . . . . . . . . . . . . . . . . . . . . . . . . . . . . . Critical Parts Destroyed 4 | . 1 . . . 2 . 1 . . . . . . . . . . . . . . . . . . . . . . . . . . . . . . . . Critical Strikes 35 | . 1 . . . 4 2 2 3 . . 1 . . . 3 . 1 1 . 1 . . 2 1 . . . 2 3 . . . . . . 3 . . 5 Destroy 9 | . 1 . . . 4 2 2 . . . . . . . . . . . . . . . . . . . . . . . . . . . . . . . . Corrupt 2 | . . . . . . . . . . . . . . . . . . 1 . 1 . . . . . . . . . . . . . . . . . . . Sever 24 | . . . . . . . . 3 . . 1 . . . 3 . 1 . . . . . 2 1 . . . 2 3 . . . . . . 3 . . 5 Melee Attacks 1254 | . . . . . 2 8 2 105 . 72 4 . . 5 121 . 88 . 1 5 6 105 10 95 . 7 5 17 153 5 102 1 6 12 . 80 21 31 185 Impact . | . . . . . . . . . . . . . . . . . . . . . . . . . . . . . . . . . . . . . . . . Slashing 1218 | . . . . . 2 8 2 105 . 72 4 . . 5 117 . 88 . 1 5 6 105 10 95 . 7 5 17 153 5 102 1 6 12 . 80 21 31 153 Piercing . | . . . . . . . . . . . . . . . . . . . . . . . . . . . . . . . . . . . . . . . . Entropic 32 | . . . . . . . . . . . . . . . . . . . . . . . . . . . . . . . . . . . . . . . 32 Sneak Attacks 89 | . . . . . . . . 1 . 10 . . . 1 17 . 4 . . 2 2 7 9 6 . . . 1 12 . 6 . 1 . . 3 . 2 5 Combat Hostiles 7 | . . . . . . . . . . . . . . 1 . . . . . . . . . . . . . . . . 1 . . . . 2 . . 3 Follow-up Attacks 51 | . . . . . . . . . . . . . . . . . . . . . . 7 . 3 . . 1 . 10 . 4 . . . . . . . 26 Damage Inflicted 65856 | 3 1283 633 . . 3575 1226 2996 1469 . 1460 155 . . 1111 3246 . 3534 1624 1024 629 2654 3479 952 3987 . 871 577 1927 6253 . 3489 . 828 1293 . 3447 329 729 11073 Guns 7843 | . 886 . . . 2827 1226 2904 . . . . . . . . . . . . . . . . . . . . . . . . . . . . . . . . Cannons 4333 | . . . . . . . . . . . . . . . . . . 1608 755 214 1513 . . . . . . . . . 35 . . . . . . . 208 Explosions 20004 | . 388 624 . . 717 . . . . 213 . . . 802 615 . 2190 . 269 . 896 1260 . 2516 . 740 . 1379 2074 . 1544 . 606 1293 . 1549 . . 329 Melee 33499 | . . . . . . . . 1469 . 1247 155 . . 309 2631 . 1344 . . 415 228 2219 952 1471 . 131 577 548 4179 . 1910 . 222 . . 1898 329 729 10536 Ramming 177 | 3 9 9 . . 31 . 92 . . . . . . . . . . 16 . . 17 . . . . . . . . . . . . . . . . . . Kinetic 7843 | . 886 . . . 2827 1226 2904 . . . . . . . . . . . . . . . . . . . . . . . . . . . . . . . . Thermal 1341 | . . . . . . . . . . . . . . . . . 169 . 269 . 458 . . 202 . . . . . . 35 . . . . . . . 208 Explosive 18686 | . 388 624 . . 717 . . . . 213 . . . 802 615 . 2021 . . . 218 1260 . 2314 . 740 . 1379 2074 . 1544 . 606 1293 . 1549 . . 329 Electromagnetic 4310 | . . . . . . . . . . . . . . . . . . 1608 755 214 1733 . . . . . . . . . . . . . . . . . . Impact . | . . . . . . . . . . . . . . . . . . . . . . . . . . . . . . . . . . . . . . . . Slashing 29839 | . . . . . . . . 1469 . 1247 155 . . 309 2631 . 1344 . . 415 228 2219 952 1471 . 131 577 548 4179 . 1910 . 222 . . 1898 329 729 6876 Piercing . | . . . . . . . . . . . . . . . . . . . . . . . . . . . . . . . . . . . . . . . . Entropic 3660 | . . . . . . . . . . . . . . . . . . . . . . . . . . . . . . . . . . . . . . . 3660 Highest Corruption 17 | . . . . . 2 2 6 1 . 2 . . . . 4 . 1 1 1 1 17 . . . . . . . . . . . . . . 2 . . 4 Average Corruption 2 | . . . . . 2 2 2 1 . 1 . . . . 3 . 1 1 1 1 3 . . . . . . . . . . . . . . 1 . . 2 Corruption Purged 14 | . . . . . . . . 1 . 3 . . . . 4 . 1 . . 1 . . . . . . . . . . . . . . . . . . 4 Corruption Blocked . | . . . . . . . . . . . . . . . . . . . . . . . . . . . . . . . . . . . . . . . . Effects 188 | . . . . . 22 20 66 7 . . . . . . 18 . 3 13 2 2 31 . . . . . . . . . . . . . . 1 . . 3 Message Errors 37 | . . . . . 4 3 12 2 . . . . . . 5 . . 1 . 1 8 . . . . . . . . . . . . . . . . . 1 Matter Fused 57 | . . . . . 4 8 23 2 . . . . . . 5 . 1 2 . . 11 . . . . . . . . . . . . . . 1 . . . Heat Flow Errors 19 | . . . . . 3 2 4 . . . . . . . 2 . . 4 1 . 2 . . . . . . . . . . . . . . . . . 1 Energy Discharges 26 | . . . . . 4 1 9 1 . . . . . . 4 . 2 . 1 . 3 . . . . . . . . . . . . . . . . . 1 Parts Rejected 3 | . . . . . . . 2 1 . . . . . . . . . . . . . . . . . . . . . . . . . . . . . . . Parts Fused 3 | . . . . . 1 . 2 . . . . . . . . . . . . . . . . . . . . . . . . . . . . . . . . Data Loss (minor) 15 | . . . . . 1 3 4 1 . . . . . . . . . 2 . 1 3 . . . . . . . . . . . . . . . . . . Data Loss (major) 8 | . . . . . 1 2 2 . . . . . . . 2 . . . . . 1 . . . . . . . . . . . . . . . . . . Misfires 10 | . . . . . 3 . 4 . . . . . . . . . . 2 . . 1 . . . . . . . . . . . . . . . . . . Alerts 4 | . . . . . 1 . 1 . . . . . . . . . . 2 . . . . . . . . . . . . . . . . . . . . . Weapon Failures 6 | . . . . . . 1 3 . . . . . . . . . . . . . 2 . . . . . . . . . . . . . . . . . . Overload Shots . | . . . . . . . . . . . . . . . . . . . . . . . . . . . . . . . . . . . . . . . . Overflow Damage 6744 | . . 44 . . 7 . 13 158 . 265 . . . 86 290 . 279 119 13 116 398 921 34 273 . 98 358 31 586 . 420 . 111 90 . 233 75 227 1499 Projectiles 332 | . . . . . . . . . . . . . . . . . . 119 13 . 200 . . . . . . . . . . . . . . . . . . Explosions 593 | . . 44 . . 7 . . . . . . . . . . . 106 . . . 40 20 . 43 . . . . 111 . 66 . . 90 . 12 . . 54 Melee 5819 | . . . . . . . 13 158 . 265 . . . 86 290 . 173 . . 116 158 901 34 230 . 98 358 31 475 . 354 . 111 . . 221 75 227 1445 Knockbacks 1 | . . . . . . . 1 . . . . . . . . . . . . . . . . . . . . . . . . . . . . . . . . Impact 1 | . . . . . . . 1 . . . . . . . . . . . . . . . . . . . . . . . . . . . . . . . . Kinetic . | . . . . . . . . . . . . . . . . . . . . . . . . . . . . . . . . . . . . . . . . Secondary . | . . . . . . . . . . . . . . . . . . . . . . . . . . . . . . . . . . . . . . . . Self-Inflicted Damage 462 | . 42 118 . . 38 . . . . . . . . . . . . . . . 167 . . . . 57 . . . . 40 . . . . . . . . Shots 14 | . 2 5 . . 1 . . . . . . . . . . . . . . . 3 . . . . 2 . . . . 1 . . . . . . . . Rammed 23 | 2 3 1 . . 6 . 7 . . . . . . . . . . 2 . . 2 . . . . . . . . . . . . . . . . . . Targets Rammed 26 | 2 4 1 . . 7 . 8 . . . . . . . . . . 2 . . 2 . . . . . . . . . . . . . . . . . . Kicked . | . . . . . . . . . . . . . . . . . . . . . . . . . . . . . . . . . . . . . . . . Crushed 3 | . 1 . . . 1 . 1 . . . . . . . . . . . . . . . . . . . . . . . . . . . . . . . . Highest Temperature 426 | . 10 30 . . 367 343 282 50 . 184 2 2 2 27 272 255 169 312 332 135 335 320 . 300 120 269 72 47 214 165 324 426 36 217 18 258 193 93 304 Average Temperature 66 | . 3 23 . . 67 120 60 17 . 37 2 2 2 6 35 178 45 87 103 63 83 69 . 78 50 112 31 47 23 45 64 114 19 70 18 65 112 56 58 Received Heat Transfer 2089 | . 264 42 . . 513 232 291 93 . 27 . . . 15 20 . 30 134 56 18 114 18 . 45 . 9 . 48 21 . 18 . . . . . . . 81 Effects 10 | . . . . . . 1 . . . . . . . . 1 . . . . . 2 2 . 2 . 1 . . . . 1 . . . . . . . . Energy Bleed 4 | . . . . . . 1 . . . . . . . . 1 . . . . . . 1 . . . 1 . . . . . . . . . . . . . Interference 5 | . . . . . . . . . . . . . . . . . . . . . 2 1 . 2 . . . . . . . . . . . . . . . Matter Decay 1 | . . . . . . . . . . . . . . . . . . . . . . . . . . . . . . . 1 . . . . . . . . Siege Activations 11 | . . . . . . . . . . . . . . . . . . 4 2 . 5 . . . . . . . . . . . . . . . . . . Total Turns 190 | . . . . . . . . . . . . . . . . . . 55 29 . 106 . . . . . . . . . . . . . . . . . . Longest Duration 58 | . . . . . . . . . . . . . . . . . . 24 16 . 58 . . . . . . . . . . . . . . . . . . Robots Corrupted 14 | . . . . . . . . . . . . . . . . . . 6 5 . 3 . . . . . . . . . . . . . . . . . . Combat Hostiles 14 | . . . . . . . . . . . . . . . . . . 6 5 . 3 . . . . . . . . . . . . . . . . . . Parts Fried 40 | . . . . . . . . . . . . . . . . . . 15 4 . 21 . . . . . . . . . . . . . . . . . . Impact Corruptions 1 | . . . . . . . 1 . . . . . . . . . . . . . . . . . . . . . . . . . . . . . . . . Robots Melted . | . . . . . . . . . . . . . . . . . . . . . . . . . . . . . . . . . . . . . . . . Combat Hostiles . | . . . . . . . . . . . . . . . . . . . . . . . . . . . . . . . . . . . . . . . . Parts Melted 3 | . . . . . . . . . . . . . . . . . . . . . 2 . . . . . . . . . . . . . . . . . 1 Heat Transferred 1344 | . . . . . . . . . . . . . . . . . 150 . 250 . 585 . . 100 . . . . . . 37 . . . . . . . 222 Parts Sabotaged . | . . . . . . . . . . . . . . . . . . . . . . . . . . . . . . . . . . . . . . . . Parts Stolen . | . . . . . . . . . . . . . . . . . . . . . . . . . . . . . . . . . . . . . . . . Parts Stripped . | . . . . . . . . . . . . . . . . . . . . . . . . . . . . . . . . . . . . . . . . Power Chain Reactions 3 | . . . . . . . . . . . . . . . . . . . 1 . 2 . . . . . . . . . . . . . . . . . . Alert | -11 -10 -10 -10 -9 -8 -8 -8 -7 -7 -7 -7 -7 -7 -6 -6 -6 -6 -6 -6 -6 -6 -5 -5 -5 -5 -5 -5 -4 -4 -4 -4 -4 -4 -4 -3 -3 -2 -1 -1 ------- Run | Yrd Mat Min Exi Min Mat Gar Mat Fac Was Fac Low Low Zio Pro Fac Was Fac Ext Cet Arc Hub Fac Was Fac Upp Upp Zhi Pro Fac Gar Fac Upp Upp War Pro Res Res Acc Com Peak Influence 1060 | . 341 325 . . 401 714 595 556 112 438 . . . . 451 101 409 745 758 545 1060 497 131 801 . . . . 803 251 596 . . . . 477 423 460 815 Initial 445 | . . 86 . . . 135 347 270 52 78 . . . . 213 56 70 100 416 303 28 445 131 91 . . . . 285 198 131 . . . . . 135 253 294 Average 248 | . 160 68 . . 142 444 257 266 73 202 . . . . 189 80 151 206 629 298 495 236 131 230 . . . . 429 223 220 . . . . 188 296 342 573 Maximum Alert Level 3 | . 1 1 . . 2 3 2 2 . 2 . . . . 2 . 2 3 3 2 3 2 . 3 . . . . 3 1 2 . . . . 2 2 2 3 Low Security (%) 50 | 100 52 92 . 100 71 15 48 43 100 61 . . . . 55 100 72 68 . 47 10 45 100 56 . . . . 21 43 40 . . . . 57 7 2 . Level 1 27 | . 47 7 . . 22 19 33 36 . 33 . . . . 37 . 26 7 . 28 22 34 . 26 . . . . 21 56 53 . . . . 27 78 65 1 Level 2 19 | . . . . . 6 57 17 19 . 4 . . . . 6 . . 23 51 24 49 19 . 10 . . . . 45 . 5 . . . . 14 14 32 79 Level 3 3 | . . . . . . 8 . . . . . . . . . . . . 48 . 17 . . 7 . . . . 11 . . . . . . . . . 18 Level 4 . | . . . . . . . . . . . . . . . . . . . . . . . . . . . . . . . . . . . . . . . . Level 5 . | . . . . . . . . . . . . . . . . . . . . . . . . . . . . . . . . . . . . . . . . High Security . | . . . . . . . . . . . . . . . . . . . . . . . . . . . . . . . . . . . . . . . . Max Security . | . . . . . . . . . . . . . . . . . . . . . . . . . . . . . . . . . . . . . . . . Squads Dispatched 171 | . 5 . . . 7 . 4 8 . 14 . . . . 13 . 14 6 . . 9 16 . 21 . 1 . . 16 . 15 . . . . 9 3 2 8 Investigation 71 | . 3 . . . 1 . . 6 . 10 . . . . 6 . 6 . . . . 8 . 8 . . . . 8 . 6 . . . . 4 3 1 1 Extermination 28 | . . . . . . . . 1 . 2 . . . . 2 . 4 . . . 3 2 . 3 . . . . 2 . 3 . . . . 2 . 1 3 Reinforcement 53 | . 2 . . . 3 . 4 1 . 2 . . . . 5 . 4 4 . . 3 6 . 5 . . . . 5 . 5 . . . . 2 . . 2 Assault 10 | . . . . . . . . . . . . . . . . . . 2 . . . . . 2 . 1 . . 1 . 1 . . . . 1 . . 2 Garrison 9 | . . . . . 3 . . . . . . . . . . . . . . . 3 . . 3 . . . . . . . . . . . . . . . Intercept . | . . . . . . . . . . . . . . . . . . . . . . . . . . . . . . . . . . . . . . . . Searches Triggered 7 | . . . . . . . . 1 . . . . . . . . . . . . . 1 . . . . . . 4 . . . . . . . . 1 . Construction Impeded 5 | . . . . . . . 1 . . 1 . . . . . . 1 1 . . . . . 1 . . . . . . . . . . . . . . . Haulers Reinforced 8 | . . . . . . . . . . . . . . . 1 . . . . . . 2 . 2 . . . . 2 . 1 . . . . . . . . Active Scanning Responses . | . . . . . . . . . . . . . . . . . . . . . . . . . . . . . . . . . . . . . . . . Cargo Convoy Interrupts 6 | . . . . . . . . . . 1 . . . . 1 . 1 . . . . 1 . . . . . . 1 . 1 . . . . . . . . Stealth | -11 -10 -10 -10 -9 -8 -8 -8 -7 -7 -7 -7 -7 -7 -6 -6 -6 -6 -6 -6 -6 -6 -5 -5 -5 -5 -5 -5 -4 -4 -4 -4 -4 -4 -4 -3 -3 -2 -1 -1 --------- Run | Yrd Mat Min Exi Min Mat Gar Mat Fac Was Fac Low Low Zio Pro Fac Was Fac Ext Cet Arc Hub Fac Was Fac Upp Upp Zhi Pro Fac Gar Fac Upp Upp War Pro Res Res Acc Com Distress Signals 50 | . . . . . 3 . 2 3 . 3 . . . . 1 . 3 . 1 . . 3 . 6 . . . 1 1 . 3 . . . . 3 4 2 11 Communications Jammed . | . . . . . . . . . . . . . . . . . . . . . . . . . . . . . . . . . . . . . . . . Distress Signals . | . . . . . . . . . . . . . . . . . . . . . . . . . . . . . . . . . . . . . . . . Times Spotted 796 | . 25 9 . . 58 16 52 46 6 33 1 4 . 13 26 6 34 40 13 10 36 49 . 48 . 18 . 11 64 3 42 1 1 12 . 33 10 11 65 Peak Tracking Total 13 | . 4 5 . . 5 3 3 13 6 5 1 7 . 6 4 6 5 5 7 2 4 7 . 7 . 10 . 5 9 3 9 1 4 8 . 5 6 6 13 Tactical Retreats 138 | . 4 . . . 4 . 2 15 . 8 . 2 . . 7 . 12 3 1 . 2 16 . 8 . 4 . . 16 . 9 1 . 3 . 9 2 6 4 Traps | -11 -10 -10 -10 -9 -8 -8 -8 -7 -7 -7 -7 -7 -7 -6 -6 -6 -6 -6 -6 -6 -6 -5 -5 -5 -5 -5 -5 -4 -4 -4 -4 -4 -4 -4 -3 -3 -2 -1 -1 ------- Run | Yrd Mat Min Exi Min Mat Gar Mat Fac Was Fac Low Low Zio Pro Fac Was Fac Ext Cet Arc Hub Fac Was Fac Upp Upp Zhi Pro Fac Gar Fac Upp Upp War Pro Res Res Acc Com Traps Triggered 41 | . 2 . . . 1 4 2 3 . 2 . . . . 5 . 5 2 . . 1 3 . 5 . . . . 1 2 2 . . . . . 1 . . Indirectly . | . . . . . . . . . . . . . . . . . . . . . . . . . . . . . . . . . . . . . . . . Trap Hack Attempts 81 | . . . . . . . 12 19 . . . . . . 19 . . . . . . 13 . . . . . . 18 . . . . . . . . . . Triggered . | . . . . . . . . . . . . . . . . . . . . . . . . . . . . . . . . . . . . . . . . Disarmed 1 | . . . . . . . . . . . . . . . . . . . . . . 1 . . . . . . . . . . . . . . . . . Reprogrammed 59 | . . . . . . . 2 11 . . . . . . 5 . . . . . . 3 . . . . . . 26 . 11 . . . . . . . 1 Reused 27 | . . . . . . . . 1 . 2 . . . . 4 . 2 . . . . 1 . . . . . . 9 . 6 . . 1 . . . . 1 Traps Extracted 28 | . . . . . . . 2 10 . 2 . . . . 4 . . . . . . 4 . . . . . . 6 . . . . . . . . . . Installed 22 | . . . . . . . . . . 4 . . . . 4 . 2 . . . . 2 . . . 1 . . 4 . 3 . . 2 . . . . . Triggered 33 | . . . . . . . . 1 . 2 . . . . 4 . 3 . . . . 1 . . . . . 1 9 . 6 . . 5 . . . . 1 Most Traps Carried 7 | . . . . . . . 2 7 6 6 4 4 4 4 4 4 4 2 2 2 2 4 4 4 4 4 4 4 6 6 6 . 1 2 . . . . . Machines | -11 -10 -10 -10 -9 -8 -8 -8 -7 -7 -7 -7 -7 -7 -6 -6 -6 -6 -6 -6 -6 -6 -5 -5 -5 -5 -5 -5 -4 -4 -4 -4 -4 -4 -4 -3 -3 -2 -1 -1 ---------- Run | Yrd Mat Min Exi Min Mat Gar Mat Fac Was Fac Low Low Zio Pro Fac Was Fac Ext Cet Arc Hub Fac Was Fac Upp Upp Zhi Pro Fac Gar Fac Upp Upp War Pro Res Res Acc Com Machines Disabled 80 | . 2 . . . 3 1 2 . . 1 . . . . 3 . 9 4 2 2 25 2 . 12 . . . . 4 . 6 . . 1 . . . . 1 Max in Single Turn 15 | . 1 . . . 1 1 1 . . 1 . . . . 1 . 7 1 1 1 15 2 . 5 . . . . 2 . 3 . . 1 . . . . 1 Garrison Access 38 | . . . . . . . 1 4 . 4 . . . . 4 . 4 . . . . 4 . 3 . . . . 3 . 3 . . . . 2 2 4 . Network Hub 2 | . . . . . . . . . . . . . . . . . . . . . 2 . . . . . . . . . . . . . . . . . . Machines Repaired . | . . . . . . . . . . . . . . . . . . . . . . . . . . . . . . . . . . . . . . . . Machines Dismantled . | . . . . . . . . . . . . . . . . . . . . . . . . . . . . . . . . . . . . . . . . Machines Sabotaged . | . . . . . . . . . . . . . . . . . . . . . . . . . . . . . . . . . . . . . . . . Overloaded Fab Kills . | . . . . . . . . . . . . . . . . . . . . . . . . . . . . . . . . . . . . . . . . Hacking | -11 -10 -10 -10 -9 -8 -8 -8 -7 -7 -7 -7 -7 -7 -6 -6 -6 -6 -6 -6 -6 -6 -5 -5 -5 -5 -5 -5 -4 -4 -4 -4 -4 -4 -4 -3 -3 -2 -1 -1 --------- Run | Yrd Mat Min Exi Min Mat Gar Mat Fac Was Fac Low Low Zio Pro Fac Was Fac Ext Cet Arc Hub Fac Was Fac Upp Upp Zhi Pro Fac Gar Fac Upp Upp War Pro Res Res Acc Com Machines Accessed 390 | . 8 . 2 1 11 3 10 29 . 30 1 1 1 . 34 . 40 7 . . 7 40 . 29 1 . 6 . 30 . 33 . . 8 . 20 7 18 13 Terminals 186 | . 5 . . . 8 3 6 13 . 16 . . . . 13 . 18 6 . . 7 19 . 12 . . . . 13 . 15 . . . . 11 1 9 11 Fabricators 51 | . . . . . . . . 6 . 5 . . . . 5 . 6 . . . . 5 . 5 . . . . 6 . 6 . . . . 4 2 1 . Repair Stations 36 | . 1 . . . 1 . 1 1 . 2 . . . . 6 . 5 . . . . 4 . 3 . . . . 4 . 3 . . . . . 1 3 1 Recycling Units 43 | . 2 . . . 1 . 1 5 . 2 . . . . 3 . 5 1 . . . 5 . 5 . . . . 3 . 5 . . . . 2 1 1 1 Scanalyzers 13 | . . . . . . . 1 . . 1 . . . . 3 . 2 . . . . 3 . 1 . . . . . . 1 . . . . 1 . . . Garrison Access 40 | . . . . . 1 . 1 4 . 4 . . . . 4 . 4 . . . . 4 . 3 . . . . 4 . 3 . . . . 2 2 4 . Total Hacks 1384 | . 20 . 5 1 30 8 22 72 . 80 1 1 6 . 112 . 124 14 . . 20 176 . 126 1 . 19 . 150 . 149 . . 24 . 83 20 51 69 Successful 973 | . 8 . 5 1 14 4 12 51 . 56 1 1 6 . 76 . 96 7 . . 9 129 . 96 1 . 19 . 118 . 119 . . 24 . 52 11 25 32 Failed 409 | . 12 . . . 16 4 10 21 . 23 . . . . 36 . 28 7 . . 11 47 . 29 . . . . 32 . 30 . . . . 31 9 26 37 Catastrophic 59 | . 2 . . . 4 1 . 2 . 6 . . . . 5 . 3 1 . . 5 4 . 2 . . . . 3 . 3 . . . . 9 2 2 5 Database Lockouts 2 | . . . . . . . . . . 1 . . . . . . . . . . . . . 1 . . . . . . . . . . . . . . . Manual 624 | . 17 . 1 . 18 1 8 31 . 36 . . . . 51 . 45 8 1 . 15 78 . 62 . . . . 88 . 64 . . . . 42 7 13 38 Terminals 718 | . 15 . . . 22 8 13 34 . 45 . . . . 50 . 45 12 . . 20 109 . 66 . . . . 83 . 72 . . . . 53 5 17 49 Fabricators 219 | . . . . . . . . 24 . 15 . . . . 20 . 25 . . . . 19 . 26 . . . . 27 . 32 . . . . 18 6 7 . Repair Stations 180 | . 3 . . . 3 . 2 2 . 8 . . . . 20 . 23 . . . . 14 . 17 . . . . 30 . 22 . . . . . 4 16 16 Recycling Units 105 | . 2 . . . 4 . 3 6 . 5 . . . . 7 . 14 2 . . . 14 . 13 . . . . 6 . 12 . . . . 8 2 3 4 Scanalyzers 51 | . . . . . . . 3 . . 2 . . . . 11 . 12 . . . . 13 . 1 . . . . . . 7 . . . . 2 . . . Garrison Access 53 | . . . . . 1 . 1 6 . 5 . . . . 4 . 5 . . . . 7 . 3 . . . . 4 . 4 . . . . 2 3 8 . Terminal Hacks 359 | . 3 . 5 1 6 3 6 14 . 14 1 1 6 . 15 . 19 5 . . 7 46 . 35 1 . 19 . 46 . 43 . . 24 . 22 . 6 11 Record 32 | . . . 4 . . . . . . . . . . . . . . . . . . . . . . . 7 . 1 . . . . 18 . 1 . . 1 Part Schematic 34 | . . . . . . . . 4 . 1 . . 6 . 2 . . . . . . 2 . 4 . . 4 . 8 . 2 . . . . 1 . . . Robot Analysis 12 | . 2 . . . . . 2 . . . . . . . . . . . . . . . . 1 . . 4 . . . 2 . . . . 1 . . . Prototype ID Bank 16 | . 1 . . . . . . . . . . . . . . . . . . . . 3 . 1 . . 4 . 1 . 1 . . 5 . . . . . Open Door 12 | . . . . 1 . . . . . . 1 1 . . . . 1 2 . . . . . . 1 . . . . . . . . 1 . . . 4 . Level Access Points 6 | . . . . . . . . . . 1 . . . . . . . . . . . 1 . 1 . . . . 2 . 1 . . . . . . . . Branch Access Points 7 | . . . . . . . . . . 1 . . . . . . 1 . . . . 1 . 1 . . . . 1 . 1 . . . . . . 1 . Emergency Access Points 2 | . . . . . . 1 . . . . . . . . . . . . . . . 1 . . . . . . . . . . . . . . . . . Machine Index 7 | . . . . . . . . . . 1 . . . . 1 . 1 . . . . 1 . 1 . . . . . . 1 . . . . 1 . . . Terminal Index 9 | . . . . . . . . 1 . 1 . . . . 1 . 1 . . . . 1 . 1 . . . . 1 . 1 . . . . . . . 1 Fabricator Index 1 | . . . . . . . . . . . . . . . . . . . . . . . . . . . . . 1 . . . . . . . . . . Repair Station Index 1 | . . . . . . . . . . . . . . . . . . . . . . . . . . . . . 1 . . . . . . . . . . Recycling Unit Index 1 | . . . . . . . . . . . . . . . . . . . . . . . . . . . . . 1 . . . . . . . . . . Scanalyzer Index 2 | . . . . . . . . . . . . . . . . . . . . . . 1 . . . . . . 1 . . . . . . . . . . Garrison Index 1 | . . . . . . . . . . . . . . . . . . . . . . . . . . . . . 1 . . . . . . . . . . Alert Level 26 | . . . . . . . 1 . . 1 . . . . 1 . 2 1 . . 3 4 . 4 . . . . 1 . 3 . . . . 4 . . 1 Unreport Threat 48 | . . . . . 2 . 1 2 . . . . . . 3 . 3 . . . 4 8 . 6 . . . . 6 . 5 . . . . 6 . . 2 Locate Traps 20 | . . . . . 2 . 1 1 . 1 . . . . . . . 1 . . . 4 . 3 . . . . . . 4 . . . . 2 . . 1 Reprogram Traps 9 | . . . . . . . . 1 . . . . . . . . . . . . . . . . . . . . 4 . 3 . . . . . . . 1 Dispatch Records 1 | . . . . . . . . . . . . . . . . . . . . . . . . . . . . . 1 . . . . . . . . . . Security Status 1 | . . . . . . . . . . . . . . . . . . . . . . . . . . . . . . . . . . . . . . . 1 Patrol Status 13 | . . . . . . . . . . . . . . . 1 . 2 . . . . 2 . 1 . . . . 2 . 2 . . . . 2 . . 1 Recall Investigation 35 | . . . . . . . . 3 . 4 . . . . 3 . 4 . . . . 5 . 3 . . . . 5 . 6 . . . . 2 . . . Recall Extermination 17 | . . . . . . . . 1 . 2 . . . . 1 . 3 . . . . 2 . 2 . . . . 2 . 2 . . . . 1 . 1 . Recall Reinforcements 15 | . . . . . . . . 1 . . . . . . 1 . 1 1 . . . 4 . 2 . . . . 2 . 3 . . . . . . . . Recall Assault 8 | . . . . . . . . . . . . . . . . . . . . . . 2 . 1 . . . . 1 . 3 . . . . 1 . . . Hauler Manifests 10 | . . . . . 1 . 1 . . 1 . . . . . . . . . . . 2 . 2 . . . . 1 . 2 . . . . . . . . Registered Prototypes 1 | . . . . . . . . . . . . . . . . . . . . . . . . 1 . . . . . . . . . . . . . . . Zone Layout 7 | . . . . . 1 . . . . . . . . . 1 . . . . . . 2 . . . . . . 2 . 1 . . . . . . . . Garrison Registry 1 | . . . . . . 1 . . . . . . . . . . . . . . . . . . . . . . . . . . . . . . . . . Security Stations 1 | . . . . . . 1 . . . . . . . . . . . . . . . . . . . . . . . . . . . . . . . . . Derelict Proto ID Bank 1 | . . . 1 . . . . . . . . . . . . . . . . . . . . . . . . . . . . . . . . . . . . Disengage Seal 2 | . . . . . . . . . . . . . . . . . . . . . . . . . . . . . . . . . . . . . . . 2 Fabricator Hacks 113 | . . . . . . . . 13 . 10 . . . . 11 . 13 . . . . 10 . 12 . . . . 14 . 15 . . . . 9 4 2 . Network Status 8 | . . . . . . . . 1 . . . . . . 1 . 1 . . . . 2 . 1 . . . . . . 1 . . . . 1 . . . Load Schematic 50 | . . . . . . . . 6 . 5 . . . . 5 . 5 . . . . 4 . 5 . . . . 7 . 6 . . . . 4 2 1 . Build 55 | . . . . . . . . 6 . 5 . . . . 5 . 7 . . . . 4 . 6 . . . . 7 . 8 . . . . 4 2 1 . Repair Station Hacks 148 | . 2 . . . 2 . 1 2 . 8 . . . . 17 . 20 . . . . 11 . 16 . . . . 28 . 18 . . . . . 3 7 13 Scan Component 73 | . 1 . . . 1 . 1 1 . 4 . . . . 7 . 10 . . . . 4 . 8 . . . . 14 . 9 . . . . . 2 4 7 Repair 67 | . 1 . . . 1 . . 1 . 4 . . . . 6 . 9 . . . . 4 . 8 . . . . 14 . 9 . . . . . 1 3 6 Refit 8 | . . . . . . . . . . . . . . . 4 . 1 . . . . 3 . . . . . . . . . . . . . . . . . Recycling Unit Hacks 43 | . . . . . 2 . . 5 . 2 . . . . 2 . 6 . . . . 5 . 6 . . . . 3 . 7 . . . . 2 1 1 1 Process 2 | . . . . . . . . . . . . . . . . . 1 . . . . . . . . . . . . . 1 . . . . . . . . Report Inventory 1 | . . . . . . . . . . . . . . . . . . . . . . . . . . . . . . . 1 . . . . . . . . Retrieve Matter 2 | . . . . . . . . . . . . . . . . . 1 . . . . . . . . . . . . . 1 . . . . . . . . Retrieve Components 38 | . . . . . 2 . . 5 . 2 . . . . 2 . 4 . . . . 5 . 6 . . . . 3 . 4 . . . . 2 1 1 1 Scanalyzer 40 | . . . . . . . 3 . . 2 . . . . 10 . 10 . . . . 8 . . . . . . . . 6 . . . . 1 . . . Insert Component 15 | . . . . . . . 1 . . 1 . . . . 5 . 3 . . . . 2 . . . . . . . . 2 . . . . 1 . . . Analyze 25 | . . . . . . . 2 . . 1 . . . . 5 . 7 . . . . 6 . . . . . . . . 4 . . . . . . . . Garrison Access Hacks 40 | . . . . . 1 . 1 4 . 4 . . . . 4 . 4 . . . . 4 . 3 . . . . 4 . 3 . . . . 2 2 4 . Unlock Access 2 | . . . . . 1 . . . . . . . . . . . . . . . . . . . . . . . 1 . . . . . . . . . . Seal Access 38 | . . . . . . . 1 4 . 4 . . . . 4 . 4 . . . . 4 . 3 . . . . 3 . 3 . . . . 2 2 4 . Unauthorized Hacks 229 | . 3 . . . 3 1 1 13 . 16 . . . . 17 . 23 2 . . 2 45 . 24 . . . . 23 . 27 . . . . 16 1 5 7 Terminals 103 | . 1 . . . 3 1 1 6 . 10 . . . . 8 . 7 2 . . 2 25 . 7 . . . . 9 . 7 . . . . 5 . 3 6 Track 4 | . . . . . . . . . . . . . . . . . . . . . . 1 . 1 . . . . 1 . 1 . . . . . . . . Assimilate 36 | . . . . . . . . 3 . 3 . . . . 3 . 3 . . . . 7 . 1 . . . . 4 . 3 . . . . 3 . 2 4 Botnet 57 | . 1 . . . 2 . 1 3 . 7 . . . . 5 . 4 2 . . 2 15 . 4 . . . . 4 . 2 . . . . 2 . 1 2 Disrupt 1 | . . . . . . . . . . . . . . . . . . . . . . 1 . . . . . . . . . . . . . . . . . Operators 4 | . . . . . 1 . . . . . . . . . . . . . . . . 1 . 1 . . . . . . 1 . . . . . . . . Override 1 | . . . . . . 1 . . . . . . . . . . . . . . . . . . . . . . . . . . . . . . . . . Fabricators 84 | . . . . . . . . 7 . 4 . . . . 6 . 11 . . . . 9 . 10 . . . . 12 . 15 . . . . 8 1 1 . Report 6 | . . . . . . . . . . . . . . . . . 1 . . . . 1 . 1 . . . . 1 . 2 . . . . . . . . Prioritize 37 | . . . . . . . . 3 . 3 . . . . 2 . 5 . . . . 4 . 4 . . . . 5 . 6 . . . . 3 1 1 . Liberate 31 | . . . . . . . . 3 . 1 . . . . 3 . 4 . . . . 2 . 4 . . . . 5 . 5 . . . . 4 . . . Haulers 9 | . . . . . . . . 1 . . . . . . 1 . 1 . . . . 1 . 1 . . . . 1 . 2 . . . . 1 . . . Recompile 1 | . . . . . . . . . . . . . . . . . . . . . . 1 . . . . . . . . . . . . . . . . . Repair Stations . | . . . . . . . . . . . . . . . . . . . . . . . . . . . . . . . . . . . . . . . . Recycling Units 38 | . 2 . . . . . . . . 2 . . . . 3 . 5 . . . . 8 . 6 . . . . 2 . 5 . . . . 3 . 1 1 Monitor 1 | . . . . . . . . . . . . . . . . . . . . . . 1 . . . . . . . . . . . . . . . . . Reject 26 | . . . . . . . . . . 2 . . . . 2 . 3 . . . . 5 . 5 . . . . 2 . 4 . . . . 2 . 1 . Recyclers 3 | . . . . . . . . . . . . . . . 1 . . . . . . 1 . . . . . . . . 1 . . . . . . . . Mask 6 | . . . . . . . . . . . . . . . . . 2 . . . . 1 . 1 . . . . . . . . . . . 1 . . 1 Tunnel 2 | . 2 . . . . . . . . . . . . . . . . . . . . . . . . . . . . . . . . . . . . . . Scanalyzers 4 | . . . . . . . . . . . . . . . . . . . . . . 3 . 1 . . . . . . . . . . . . . . . Extract 4 | . . . . . . . . . . . . . . . . . . . . . . 3 . 1 . . . . . . . . . . . . . . . Garrison Access . | . . . . . . . . . . . . . . . . . . . . . . . . . . . . . . . . . . . . . . . . Data Cores Recovered 2 | . . . . . . . . . . . . . . . . . . . . . 1 . . 1 . . . . . . . . . . . . . . . Used 1 | . . . . . . . . . . . . . . . . . . . . . 1 . . . . . . . . . . . . . . . . . . Hacking Detections 248 | . 6 . . . 9 3 8 21 . 20 . . . . 29 . 26 4 . . 4 24 . 14 . . . . 20 . 20 . . . . 14 4 11 11 Full Trace Events 59 | . . . . . 1 . 1 6 . 9 . . . . 6 . 6 . . . . 4 . 6 . . . . 7 . 6 . . . . 4 2 1 . Feedback Events 3 | . . . . . . . . . . 2 . . . . . . . . . . . . . 1 . . . . . . . . . . . . . . . Corruption 1 | . . . . . . . . . . 1 . . . . . . . . . . . . . . . . . . . . . . . . . . . . . Hackware Fried 2 | . . . . . . . . . . 1 . . . . . . . . . . . . . 1 . . . . . . . . . . . . . . . Feedback Blocked . | . . . . . . . . . . . . . . . . . . . . . . . . . . . . . . . . . . . . . . . . Robot Schematics Acquired . | . . . . . . . . . . . . . . . . . . . . . . . . . . . . . . . . . . . . . . . . Robots Built 8 | . . . . . . . . . . . . . . . . . 3 . . . . . . . . . . . . . 5 . . . . . . . . Authchips . | . . . . . . . . . . . . . . . . . . . . . . . . . . . . . . . . . . . . . . . . Time 250 | . . . . . . . . . . . . . . . . . 152 . . . . . . . . . . . . . 98 . . . . . . . . Total Robot Build Rating 45 | . . . . . . . . . . . . . . . . . 15 . . . . . . . . . . . . . 30 . . . . . . . . Part Schematics Acquired 59 | . . . . . . . 1 4 . 2 . . 6 . 6 . 3 . . . . 10 . 10 . . 4 . 8 . 4 . . . . 1 . . . Parts Built 56 | . . . . . . . . 7 . 6 . . . . 5 . 7 . . . . 4 . 6 . . . . 7 . 7 . . . . 4 2 1 . Authchips 1 | . . . . . . . . . . . . . . . . . . . . . . . . . . . . . 1 . . . . . . . . . . Time 3280 | . . . . . . . . 444 . 332 . . . . 446 . 312 . . . . 122 . 375 . . . . 557 . 349 . . . . 222 96 25 . Total Part Build Rating 361 | . . . . . . . . 28 . 34 . . . . 30 . 51 . . . . 24 . 39 . . . . 53 . 53 . . . . 32 12 5 . Parts Repaired 67 | . 1 . . . 1 . . 1 . 4 . . . . 6 . 9 . . . . 4 . 8 . . . . 14 . 9 . . . . . 1 3 6 Time 3624 | . 32 . . . 44 . . 13 . 151 . . . . 281 . 438 . . . . 240 . 587 . . . . 827 . 519 . . . . . 68 105 319 Parts Recycled . | . . . . . . . . . . . . . . . . . . . . . . . . . . . . . . . . . . . . . . . . Recycled Matter 44 | . . . . . . . . . . . . . . . . . 2 . . . . . . . . . . . . . 42 . . . . . . . . Retrieved Matter 44 | . . . . . . . . . . . . . . . . . 2 . . . . . . . . . . . . . 42 . . . . . . . . Retrieved Components 101 | . . . . . 20 . . 8 . 3 . . . . 1 . 5 . . . . 19 . 9 . . . . 28 . 3 . . . . 1 1 1 2 Parts Scanalyzed 14 | . . . . . . . 1 . . 1 . . . . 5 . 3 . . . . 2 . . . . . . . . 2 . . . . . . . . Part Schematics Acquired 13 | . . . . . . . 1 . . 1 . . . . 4 . 3 . . . . 2 . . . . . . . . 2 . . . . . . . . Parts Damaged 4 | . . . . . . . . . . . . . . . . . . . . . . 2 . . . . . . . . 2 . . . . . . . . Bothacking | -11 -10 -10 -10 -9 -8 -8 -8 -7 -7 -7 -7 -7 -7 -6 -6 -6 -6 -6 -6 -6 -6 -5 -5 -5 -5 -5 -5 -4 -4 -4 -4 -4 -4 -4 -3 -3 -2 -1 -1 ------------ Run | Yrd Mat Min Exi Min Mat Gar Mat Fac Was Fac Low Low Zio Pro Fac Was Fac Ext Cet Arc Hub Fac Was Fac Upp Upp Zhi Pro Fac Gar Fac Upp Upp War Pro Res Res Acc Com Used RIF Installer . | . . . . . . . . . . . . . . . . . . . . . . . . . . . . . . . . . . . . . . . . Robots Hacked 3 | . . . . . . . . . . . . . . . 3 . . . . . . . . . . . . . . . . . . . . . . . . Non-combat 3 | . . . . . . . . . . . . . . . 3 . . . . . . . . . . . . . . . . . . . . . . . . Combat . | . . . . . . . . . . . . . . . . . . . . . . . . . . . . . . . . . . . . . . . . Robot Hacks Applied 4 | . . . . . . . . . . . . . . . 4 . . . . . . . . . . . . . . . . . . . . . . . . parse_system 1 | . . . . . . . . . . . . . . . 1 . . . . . . . . . . . . . . . . . . . . . . . . find_chute 3 | . . . . . . . . . . . . . . . 3 . . . . . . . . . . . . . . . . . . . . . . . . Relay Couplers Released 4 | . . . . . . . . 4 . . . . . . . . . . . . . . . . . . . . . . . . . . . . . . . Programmers 4 | . . . . . . . . 4 . . . . . . . . . . . . . . . . . . . . . . . . . . . . . . . Fabnet Peak Effective % . | . . . . . . . . . . . . . . . . . . . . . . . . . . . . . . . . . . . . . . . . Robots Rewired 18 | . . . . . . . . . . . . . . . . . . 13 . . . . . . . . . . . . . . . 5 . . . . . Allies Hacked 2 | . . . . . . . . . . . . . . . . . . . . . . . . . . . . . . . . . . 1 . . . . 1 Hacks Repelled . | . . . . . . . . . . . . . . . . . . . . . . . . . . . . . . . . . . . . . . . . Allies | -11 -10 -10 -10 -9 -8 -8 -8 -7 -7 -7 -7 -7 -7 -6 -6 -6 -6 -6 -6 -6 -6 -5 -5 -5 -5 -5 -5 -4 -4 -4 -4 -4 -4 -4 -3 -3 -2 -1 -1 -------- Run | Yrd Mat Min Exi Min Mat Gar Mat Fac Was Fac Low Low Zio Pro Fac Was Fac Ext Cet Arc Hub Fac Was Fac Upp Upp Zhi Pro Fac Gar Fac Upp Upp War Pro Res Res Acc Com Total Allies 116 | . . 2 . . . . . 6 . 3 . . 5 . 5 . 6 15 5 . . 4 20 1 . . . . 20 . 8 . . 5 . 6 . 1 4 Largest Group 20 | . . 2 2 . . . . 3 . 1 . . 5 5 3 . 4 9 6 6 5 2 20 15 . . . . 4 . 3 . . 5 . 3 . 1 3 Highest-Rated Group 810 | . . 47 47 . . . . 52 . 26 . . 138 138 105 . 113 390 632 632 473 52 810 560 . . . . 151 . 126 . . 277 . 141 . 45 135 Highest-Rated Ally 159 | . . 31 31 . . . . 26 . 26 . . 31 31 41 . 29 159 152 152 96 26 50 46 . . . . 49 . 49 . . 68 . 47 . 45 45 Total Orders 19 | . . . . . . . . 1 . 1 . . . . . . 3 1 . . 2 1 . . . . . . 5 . 4 . . . . . . . 1 STAY 14 | . . . . . . . . 1 . 1 . . . . . . 2 1 . . 2 1 . . . . . . 3 . 2 . . . . . . . 1 FOLLOW 5 | . . . . . . . . . . . . . . . . . 1 . . . . . . . . . . . 2 . 2 . . . . . . . . Ally Attacks 578 | . . 2 . . . . . 12 . . . . . 9 21 . 11 182 13 24 75 . . 122 . . . . 51 . 29 . . 17 . 10 . . . Total Damage 16383 | . . 21 . . . . . 151 . . . . . 145 524 . 175 4189 877 892 2972 . . 2807 . . . . 1463 . 1145 . . 822 . 200 . . . Kills 110 | . . 1 . . . . . . . . . . . 2 3 . 1 35 3 4 26 . . 18 . . . . 7 . 7 . . 3 . . . . . Allies Corrupted 3 | . . . . . . . . . . . . . . . . . . . . . 1 . . 1 . . . . . . . . . . . 1 . . . Allies Melted 5 | . . . . . . . . . . . . . . . . . 1 . . . . . . . . . . . . . . . . . . . 4 . . Intel | -11 -10 -10 -10 -9 -8 -8 -8 -7 -7 -7 -7 -7 -7 -6 -6 -6 -6 -6 -6 -6 -6 -5 -5 -5 -5 -5 -5 -4 -4 -4 -4 -4 -4 -4 -3 -3 -2 -1 -1 ------- Run | Yrd Mat Min Exi Min Mat Gar Mat Fac Was Fac Low Low Zio Pro Fac Was Fac Ext Cet Arc Hub Fac Was Fac Upp Upp Zhi Pro Fac Gar Fac Upp Upp War Pro Res Res Acc Com Robot Analysis Total 12 | . 2 . . . . . 2 . . . . . . . . . . . . . . . . 1 . . 4 . . . 2 . . . . 1 . . . Derelict Logs Recovered 17 | . . 3 . . . . . . . . . 2 3 2 . . . . . . . . . . 1 2 . 2 . . . 1 1 . . . . . . Drone Launches . | . . . . . . . . . . . . . . . . . . . . . . . . . . . . . . . . . . . . . . . . Drone Recoveries . | . . . . . . . . . . . . . . . . . . . . . . . . . . . . . . . . . . . . . . . . Exploration | -11 -10 -10 -10 -9 -8 -8 -8 -7 -7 -7 -7 -7 -7 -6 -6 -6 -6 -6 -6 -6 -6 -5 -5 -5 -5 -5 -5 -4 -4 -4 -4 -4 -4 -4 -3 -3 -2 -1 -1 ------------- Run | Yrd Mat Min Exi Min Mat Gar Mat Fac Was Fac Low Low Zio Pro Fac Was Fac Ext Cet Arc Hub Fac Was Fac Upp Upp Zhi Pro Fac Gar Fac Upp Upp War Pro Res Res Acc Com Turns Passed 47433 | 79 1629 1972 912 351 4632 1306 3542 2128 41 1677 88 93 631 455 2485 31 3031 3034 367 1514 1681 2474 94 2400 175 231 66 284 3060 71 2421 106 137 372 56 1344 348 707 1408 Spaces Moved 69583 | 44 731 611 302 135 1230 465 1344 5052 148 3362 298 379 1090 725 6168 145 7350 1166 116 211 805 6557 210 5636 475 736 188 491 6025 179 5130 447 476 896 282 3567 1245 2186 2980 Core 330 | 4 . . . . . . . . . . . . . . . . 2 . . . . . . . . . . . 124 . 42 . . . . 99 . 26 33 Treads 7329 | 40 731 611 302 135 1230 465 1344 . . . . . . . . . 97 1166 116 211 805 76 . . . . . . . . . . . . . . . . . Legs . | . . . . . . . . . . . . . . . . . . . . . . . . . . . . . . . . . . . . . . . . Wheels . | . . . . . . . . . . . . . . . . . . . . . . . . . . . . . . . . . . . . . . . . Hover . | . . . . . . . . . . . . . . . . . . . . . . . . . . . . . . . . . . . . . . . . Flight 61924 | . . . . . . . . 5052 148 3362 298 379 1090 725 6168 145 7251 . . . . 6481 210 5636 475 736 188 491 5901 179 5088 447 476 896 282 3468 1245 2160 2947 Fastest Speed 5 | 50 160 320 240 240 160 235 155 14 26 14 24 24 24 22 5 5 5 160 160 160 160 5 20 5 20 6 20 6 6 6 5 6 20 20 6 6 6 7 5 Average Speed 43 | 150 180 320 300 240 238 235 221 26 26 24 24 24 24 23 22 20 24 221 211 160 161 21 20 22 20 19 20 35 23 17 20 18 20 20 19 20 16 19 18 Slowest Speed 450 | 160 320 320 320 240 400 235 235 99 26 91 24 24 24 24 26 23 450 240 240 160 240 172 20 96 90 90 20 90 250 20 150 20 20 20 20 150 17 200 90 Overloaded Moves 1217 | . . . . . . . . 6 . 50 . . . 16 169 19 31 . . . . 205 . 63 . 35 . 93 208 38 79 33 . . 3 61 29 13 66 Propulsion Burnouts . | . . . . . . . . . . . . . . . . . . . . . . . . . . . . . . . . . . . . . . . . Robots Hopped 291 | . . . . . . . . 28 . 16 . . . . 18 . 35 . . . . 33 . 52 . 2 . . 56 2 15 . . 1 1 16 5 1 10 Cave-ins Triggered . | . . . . . . . . . . . . . . . . . . . . . . . . . . . . . . . . . . . . . . . . Exploration Rate (%) 69 | 4 97 98 70 22 82 51 89 77 85 77 46 65 79 84 88 78 90 89 58 94 76 91 90 76 69 81 61 54 79 33 80 64 64 92 49 53 39 51 59 Regions Visited 39 Branch Regions 20 Pre-discovered Areas 10 | . 2 . 1 . . . . . . . 1 . 1 . . . . . . . . . . . . . 3 1 . . . . . 1 . . . . . Known Exits Taken 14 | . . . . . 1 . 1 . . 1 . 1 . 1 . . 1 . . . 1 . . 1 . . . 1 1 . 1 . . . 1 . 1 1 . Unknown Exits Taken 17 | 1 1 1 1 1 . . . . . . 1 . 1 . . . . 1 1 1 . . . . 1 1 1 . . . . 1 1 1 . 1 . . . Scrap Searched 30 | . . 2 . 1 . . . . . . . 5 4 1 . . . . . . . . . . 2 5 . 2 . . . 3 5 . . . . . . Spaces Dug 737 | . . . . . 2 . 2 66 . 45 . . . 29 51 . 70 . 1 . 8 66 . 67 . 4 . 3 72 4 84 1 3 10 . 61 15 22 51 Terrain Destroyed 2128 | . 42 72 . . 54 . 2 66 . 57 . . . 46 96 . 250 . 1 . 364 101 . 135 . 78 . 95 115 4 229 1 48 12 . 162 15 22 61 Melee 593 | . . . . . 2 . 2 66 . 45 . . . 1 49 . 50 . 1 . 4 58 . 59 . 4 . 3 65 4 57 1 3 10 . 34 12 18 45 Projectile 127 | . . . . . 8 . . . . . . . . . 5 . 20 . . . 4 8 . 8 . . . . 7 . 27 . . . . 27 3 4 6 AOE 1408 | . 42 72 . . 44 . . . . 12 . . . 45 42 . 180 . . . 356 35 . 68 . 74 . 92 43 . 145 . 45 2 . 101 . . 10 Terrain Rammed . | . . . . . . . . . . . . . . . . . . . . . . . . . . . . . . . . . . . . . . . . Walls Destroyed . | . . . . . . . . . . . . . . . . . . . . . . . . . . . . . . . . . . . . . . . . Machines Disabled . | . . . . . . . . . . . . . . . . . . . . . . . . . . . . . . . . . . . . . . . . Actions | -11 -10 -10 -10 -9 -8 -8 -8 -7 -7 -7 -7 -7 -7 -6 -6 -6 -6 -6 -6 -6 -6 -5 -5 -5 -5 -5 -5 -4 -4 -4 -4 -4 -4 -4 -3 -3 -2 -1 -1 --------- Run | Yrd Mat Min Exi Min Mat Gar Mat Fac Was Fac Low Low Zio Pro Fac Was Fac Ext Cet Arc Hub Fac Was Fac Upp Upp Zhi Pro Fac Gar Fac Upp Upp War Pro Res Res Acc Com Total 84000 | 53 936 617 307 162 2700 593 1731 5712 150 4078 308 380 1462 995 7046 145 8347 1554 212 1371 1096 7432 247 6572 549 797 209 563 7376 209 6263 463 500 1060 280 4000 1347 2417 3761 Wait 11428 | . 124 . . 19 1259 38 192 497 . 583 3 . 350 259 621 . 792 267 74 1143 226 676 21 798 70 40 3 31 1144 28 928 12 7 110 . 283 77 178 575 Move 68983 | 43 730 610 301 134 1230 462 1343 4999 147 3331 297 378 1089 724 6134 144 7281 1165 115 210 804 6493 209 5538 474 731 187 490 5914 174 5099 446 475 893 279 3534 1234 2183 2959 Hop 272 | . . . . . . . . 25 . 14 . . . . 16 . 33 . . . . 31 . 45 . 2 . . 55 2 15 . . 1 1 16 5 1 10 Pick Up 206 | 2 10 1 1 5 18 . 8 6 . 17 . 1 8 . 12 1 29 2 3 1 1 11 . 16 . . 1 2 10 . 17 . 1 4 . 8 2 3 5 Fast Attach 166 | 6 3 . . 1 8 1 5 8 1 8 1 . . . 11 . 18 2 . 2 1 20 4 19 . . 5 1 6 . 10 . . 2 . 3 . 5 15 Attach 102 | . 1 . . . 7 1 1 11 . 8 . . 1 . 7 . 4 . . . 3 16 . 2 . . 1 3 8 . 6 . . 1 . 3 2 3 13 Detach 85 | . 1 . 1 . 1 1 1 6 2 11 . . 1 1 9 . 8 1 . . 1 12 . 3 . . 1 2 3 . 3 . . 1 . 2 . 3 10 Swap 397 | . 6 . 2 2 13 14 10 17 . 16 2 . 3 2 29 . 35 5 4 2 11 28 . 28 5 10 1 10 43 1 27 4 4 11 . 27 7 8 10 Drop 231 | . 5 . 2 1 18 1 12 19 . 12 1 1 10 . 20 . 24 2 3 3 1 27 4 5 . . 6 2 7 . 18 . 2 5 . 8 1 2 9 Fire 711 | . 52 5 . . 137 62 137 . . 2 . . . 4 8 . 36 31 12 5 40 14 . 18 . 7 . 6 18 . 44 . 5 5 . 37 3 6 17 Melee 1117 | . . . . . 2 8 2 105 . 72 4 . . 5 121 . 81 . 1 5 6 89 9 82 . 6 4 16 128 4 92 1 6 11 . 79 16 25 137 Ram . | . . . . . . . . . . . . . . . . . . . . . . . . . . . . . . . . . . . . . . . . Kick . | . . . . . . . . . . . . . . . . . . . . . . . . . . . . . . . . . . . . . . . . Crush 26 | 2 4 1 . . 7 . 8 . . . . . . . . . . 2 . . 2 . . . . . . . . . . . . . . . . . . Escape Stasis 83 | . . . . . . 5 . . . . . . . . 35 . 4 2 . . . . . 18 . . . . 18 . 1 . . . . . . . . Rewire 90 | . . . . . . . . . . . . . . . . . . 75 . . . . . . . . . . . . . . . 14 . . . . 1 Trap 103 | . . . . . . . 12 19 . 4 . . . . 23 . 2 . . . . 15 . . . 1 . . 22 . 3 . . 2 . . . . . Miscellaneous . | . . . . . . . . . . . . . . . . . . . . . . . . . . . . . . . . . . . . . . . . Route ------- -11/Scrapyard -10/Materials (discovered 5 exits: [*Mat x3] / [*Min] / [*Sub]) -10/Mines (discovered 4 exits: [*Mat x2] / *Exi / [*Sub]) -10/Exiles (discovered 2 exits: *Min x2) -9/Mines -8/Materials (discovered 3 exits: *Fac x2 / Gar) -8/Garrison (discovered 3 exits: *Mat x3) -8/Materials (discovered 2 exits: *Fac x2) -7/Factory (discovered 6 exits: *Fac x4 / *Low x2) -7/Waste -7/Factory (discovered 7 exits: *Fac x4 / *Sto / *Low x2) -7/Lower Caves -7/Lower Caves (discovered 2 exits: Fac / *Zio) -7/Zion (discovered 2 exits: Dee / [*Pro]) -6/Proximity Caves -6/Factory (discovered 7 exits: *Fac x4 / *Low x2 / *Ext) -6/Waste -6/Factory (discovered 7 exits: *Fac x3 / *Low x2 / *Ext x2) -6/Extension (discovered 2 exits: *Fac / *Cet) -6/Cetus -6/Archives (discovered 3 exits: *Fac / *Hub x2) -6/Hub_04(d) (discovered 3 exits: *Fac x3) -5/Factory (discovered 6 exits: *Fac x4 / *Upp x2) -5/Waste -5/Factory (discovered 6 exits: *Fac x4 / *Upp x2) -5/Upper Caves -5/Upper Caves -5/Zhirov -4/Proximity Caves -4/Factory (discovered 7 exits: *Res x4 / *Upp x2 / Gar) -4/Garrison -4/Factory (discovered 6 exits: *Res x4 / *Upp x2) -4/Upper Caves -4/Upper Caves -4/Warlord -3/Proximity Caves -3/Research (discovered 5 exits: *Res x2 / Arm / *Tes x2) -2/Research (discovered 2 exits: *Acc x2) -1/Access (discovered 2 exits: [Sur] / *Com) -1/Command (discovered 2 exits: [*Sur x2]) 0b11 Command History --------- Turn | Location | Event 2 | -11/Scrapyard | Met Revision 17 7 | -11/Scrapyard | Discovered new exit (range 15) 80 | -11/Scrapyard | Entered Materials 311 | -10/Materials | Build established: Mutant 561 | -10/Materials | Repaired Hvy. Assault Rifle 743 | -10/Materials | Discovered new exit (range 5) 970 | -10/Materials | Discovered new exit (range 10) 989 | -10/Materials | Discovered new exit (range 16) 1082 | -10/Materials | Discovered new exit (range 14) 1197 | -10/Materials | Core integrity fell below 50% 1330 | -10/Materials | Discovered new exit (range 7) 1709 | -10/Materials | Entered Mines 1754 | -10/Mines | Learned 2 Materials zone layouts 1809 | -10/Mines | A weapon hastily lodged in a ceiling crevice suddenly fell to the ground 1980 | -10/Mines | Core integrity fell below 20% 2430 | -10/Mines | Deemed a non-threat by the Exiles lab entrance 2430 | -10/Mines | Discovered new exit (range 5) 2849 | -10/Mines | Discovered new exit (range 5) 3034 | -10/Mines | Learned location of 1 exit from Materials 3069 | -10/Mines | Learned 2 Materials zone layouts 3217 | -10/Mines | Discovered new exit (range 7) 3236 | -10/Mines | Discovered new exit (range 14) 3681 | -10/Mines | Entered Exiles 3681 | -10/Exiles | Accompanied by 2 allies 3711 | -10/Exiles | Led the pair of lost Derelicts to a safe place 3729 | -10/Exiles | Discovered new exit (range 15) 3761 | -10/Exiles | Met 8R-AWN 3813 | -10/Exiles | Met EX-HEX 3937 | -10/Exiles | Met EX-DEC 3960 | -10/Exiles | Learned location of Zion (-7) 4017 | -10/Exiles | Met EX-BIN 4062 | -10/Exiles | Aligned with FarCom system 4065 | -10/Exiles | Given EX-Vault access code 4139 | -10/Exiles | Opened EX-Vault 4168 | -10/Exiles | Found Longsword +1 4233 | -10/Exiles | Warned to stay clear of 0b10 Research branches 4566 | -10/Exiles | Discovered new exit (range 14) 4593 | -10/Exiles | Left Exiles lab with Longsword +1 4593 | -10/Exiles | Entered Mines 4792 | -9/Mines | Discovered new exit (range 14) 4822 | -9/Mines | Met a Derelict who couldn't figure out how to use a Trap Extractor 4944 | -9/Mines | Entered Materials 4944 | -8/Materials | Evolved 4 slots: Propulsion x1, Utility x3 4945 | -8/Materials | Identified exit to Factory 5594 | -8/Materials | Build established: Scavenger-Mutant 7036 | -8/Materials | Build established: Mutant 7313 | -8/Materials | Repaired Lyr. Light Armor Plating 7938 | -8/Materials | Build established: Scavenger-Mutant 8925 | -8/Materials | Core integrity fell below 50% 9062 | -8/Materials | Garrison activated, responded to threat 9576 | -8/Materials | Identified exit to Garrison 9576 | -8/Materials | Entered Garrison 9724 | -8/Garrison | Triggered checkpoint 9828 | -8/Garrison | Destroyed 7 combat bots 9853 | -8/Garrison | Spotted B-75 Beast 9990 | -8/Garrison | Triggered checkpoint 10299 | -8/Garrison | Discovered new exit (range 61) 10299 | -8/Garrison | Discovered new exit (range 51) 10299 | -8/Garrison | Discovered new exit (range 26) 10444 | -8/Garrison | Learned Materials security intel 10491 | -8/Garrison | Attempted to access garrison exit controls, blocked by remote lockdown 10582 | -8/Garrison | Identified exit to Materials 10786 | -8/Garrison | Triggered checkpoint 10882 | -8/Garrison | Entered Materials 12090 | -8/Materials | Discovered exit to Factory (range 13) 13600 | -8/Materials | Discovered exit to Factory (range 14) 14424 | -8/Materials | Entered Factory 14424 | -7/Factory | Evolved 2 slots: Propulsion x1, Utility x1 14686 | -7/Factory | Discovered new exit (range 14) 14721 | -7/Factory | Build established: Hacker-Sprinter 15013 | -7/Factory | Discovered new exit (range 15) 15224 | -7/Factory | Search patrols dispatched 15393 | -7/Factory | Fabricated Cld. VTOL Module? 15402 | -7/Factory | Fabricated Cld. VTOL Module? 15451 | -7/Factory | Fabricated Cld. VTOL Module? 15475 | -7/Factory | Discovered new exit (range 16) 15479 | -7/Factory | Fabricated Cld. VTOL Module? 15480 | -7/Factory | Fabricated Cld. VTOL Module? 15500 | -7/Factory | Discovered new exit (range 4) 15542 | -7/Factory | Discovered new exit (range 8) 15997 | -7/Factory | Fabricated Imp. Trap Extractor (x2) 16464 | -7/Factory | Discovered new exit (range 16) 16506 | -7/Factory | Repaired Structural Scanner 16552 | -7/Factory | Manually triggered Chute Trap 16552 | -7/Factory | Sucked down chute 16552 | -7/Factory | Entered Waste 16564 | -7/Waste | Spotted C-40 Crusher 16570 | -7/Waste | Spotted C-40 Crusher 16571 | -7/Waste | Spotted C-40 Crusher 16573 | -7/Waste | Spotted C-40 Crusher 16580 | -7/Waste | Spotted C-40 Crusher 16580 | -7/Waste | Spotted C-40 Crusher 16589 | -7/Waste | Discovered new exit (range 11) 16593 | -7/Waste | Entered Factory 16630 | -7/Factory | Discovered new exit (range 3) 16673 | -7/Factory | Discovered new exit (range 13) 16956 | -7/Factory | Fabricated Cld. VTOL Module (x1) 16993 | -7/Factory | Discovered new exit (range 7) 17167 | -7/Factory | Repaired Broken Cld. VTOL Module 17204 | -7/Factory | Repaired Cld. VTOL Module 17251 | -7/Factory | Repaired Tiamat Missile Launcher 17281 | -7/Factory | Repaired Mic. Fission Core 17362 | -7/Factory | Central database locked down 17479 | -7/Factory | Fabricated Adv. Hacking Suite? 17600 | -7/Factory | Discovered new exit (range 15) 17602 | -7/Factory | Fabricated Adv. Hacking Suite? 17635 | -7/Factory | Discovered new exit (range 16) 17686 | -7/Factory | Cargo convoy interrupted 17813 | -7/Factory | Identified exit to Factory 17831 | -7/Factory | Imp. Hacking Suite fried by hacking feedback 17845 | -7/Factory | Fabricated Adv. Hacking Suite? 17860 | -7/Factory | Identified exit to Storage 17860 | -7/Factory | Identified exit to Lower Caves 17911 | -7/Factory | Fabricated Hvy. Phase Cannon? 18270 | -7/Factory | Entered Lower Caves 18294 | -7/Lower Caves | Met a Warlord Commander 18295 | -7/Lower Caves | Learned location of Warlord (-4) 18296 | -7/Lower Caves | Warlord Commander delivered Encrypted Comm Array 18323 | -7/Lower Caves | Discovered new exit (range 5) 18333 | -7/Lower Caves | Encountered a Warlord checkpoint 18358 | -7/Lower Caves | Entered another Lower Caves area 18359 | -7/Lower Caves | Discovered exit to Factory (range 14) 18386 | -7/Lower Caves | Encountered a Warlord checkpoint 18412 | -7/Lower Caves | Identified exit to Zion 18451 | -7/Lower Caves | Entered Zion 18463 | -7/Zion | Discovered new exit (range 13) 18477 | -7/Zion | Given A8's code to call for help 18545 | -7/Zion | Identified exit to Deep Caves 18582 | -7/Zion | Found Prototype Processor 18583 | -7/Zion | Found Prototype Processor 18596 | -7/Zion | Identified Exp. Core Analyzer 18645 | -7/Zion | Identified Exp. Target Analyzer 18667 | -7/Zion | Found Prototype Device 18681 | -7/Zion | Identified Mobile Refinery Mk. CCLXVII 18703 | -7/Zion | Found Prototype Device 18753 | -7/Zion | Learned location of Data Miner (-6) 18798 | -7/Zion | Identified Phasing AFG 18813 | -7/Zion | Gained Derelict followers 19082 | -7/Zion | Entered Proximity Caves 19082 | -6/Proximity Caves | Accompanied by 5 allies 19110 | -6/Proximity Caves | Spotter reported a threat 19239 | -6/Proximity Caves | Received a Behemoth hack from an annoying Tinkerer 19352 | -6/Proximity Caves | Spotted B-75 Beast 19448 | -6/Proximity Caves | Learned Factory stockpile data 19462 | -6/Proximity Caves | Learned 12 Factory zone layouts 19478 | -6/Proximity Caves | Unaware initiated a cargo recovery operation 19478 | -6/Proximity Caves | Discovered exit to Factory (range 6) 19537 | -6/Proximity Caves | Entered Factory 19537 | -6/Factory | Accompanied by 2 allies 19537 | -6/Factory | Evolved 2 slots: Power x1, Propulsion x1 19538 | -6/Factory | Identified exit to Extension 19539 | -6/Factory | Identified exit to Factory 19783 | -6/Factory | Discovered exit to Factory (range 7) 19801 | -6/Factory | Fabricated Cld. Nuclear Pulse Thruster? 19806 | -6/Factory | Fabricated Cld. Nuclear Pulse Thruster? 20046 | -6/Factory | Repaired Structural Scanner 20068 | -6/Factory | Discovered exit to Factory (range 7) 20298 | -6/Factory | Fabricated Cld. Nuclear Pulse Thruster? 20328 | -6/Factory | Fabricated Cld. Nuclear Pulse Thruster? 20895 | -6/Factory | Discovered new exit (range 8) 20897 | -6/Factory | Cargo convoy interrupted 21001 | -6/Factory | Found Prototype Hackware 21079 | -6/Factory | Discovered new exit (range 4) 21241 | -6/Factory | Repaired Cld. Nuclear Pulse Thruster 21264 | -6/Factory | Repaired Lyr. Light Armor Plating 21283 | -6/Factory | Identified Exp. System Shield 21559 | -6/Factory | Repaired Mic. Fission Core 21604 | -6/Factory | Repaired System Restoration Module 21694 | -6/Factory | Repaired Tiamat Missile Launcher 21811 | -6/Factory | Fabricated Adv. Hacking Suite? 22022 | -6/Factory | Manually triggered Chute Trap 22022 | -6/Factory | Sucked down chute 22022 | -6/Factory | Entered Waste 22025 | -6/Waste | Spotted C-40 Crusher 22035 | -6/Waste | Spotted C-40 Crusher 22035 | -6/Waste | Spotted C-40 Crusher 22035 | -6/Waste | Spotted C-40 Crusher 22047 | -6/Waste | Spotted C-40 Crusher 22047 | -6/Waste | Spotted C-40 Crusher 22049 | -6/Waste | Discovered new exit (range 10) 22053 | -6/Waste | Entered Factory 22289 | -6/Factory | Identified exit to Lower Caves 22297 | -6/Factory | Fabricated G-50 Soldier (x3) 22421 | -6/Factory | Found Hvy. Insulated Plating 22636 | -6/Factory | Repaired Com. HERF Cannon? 22640 | -6/Factory | Discovered exit to Factory (range 10) 22706 | -6/Factory | Repaired Cld. Nuclear Pulse Thruster 22752 | -6/Factory | Repaired Cld. Nuclear Pulse Thruster 22778 | -6/Factory | Repaired Power Sword 22933 | -6/Factory | Fabricated Imp. Heavy Treads (x1) 23008 | -6/Factory | Fabricated Imp. Heavy Treads (x1) 23065 | -6/Factory | Fabricated Adv. Cooling System (x1) 23161 | -6/Factory | Discovered exit to Factory (range 9) 23375 | -6/Factory | Discovered exit to Factory (range 15) 23624 | -6/Factory | Cargo convoy interrupted 23647 | -6/Factory | Found Prototype Slashing Weapon 23647 | -6/Factory | Identified Nanosword 23649 | -6/Factory | Found Nanosword 23660 | -6/Factory | Found Prototype Processor 23660 | -6/Factory | Identified Exp. Signal Interpreter 23877 | -6/Factory | Repaired Cld. Nuclear Pulse Thruster 23892 | -6/Factory | Repaired Structural Scanner 24008 | -6/Factory | Fabricated Lgt. Particle Reactor (x2) 24388 | -6/Factory | Fabricated Com. HERF Cannon (x1) 24432 | -6/Factory | Fabricated Imp. Heavy Treads (x1) 24497 | -6/Factory | Repaired Hvy. Phase Cannon 24587 | -6/Factory | Repaired Cld. Nuclear Pulse Thruster 24678 | -6/Factory | Repaired Cld. Nuclear Pulse Thruster 24894 | -6/Factory | Found Hvy. Reactive Plating 25084 | -6/Factory | Entered Extension 25183 | -6/Extension | Build established: Hacker-Mutant 26410 | -6/Extension | Rescued A7 26506 | -6/Extension | Rescued a captive Derelict 26928 | -6/Extension | Build established: Commander-Mutant 27028 | -6/Extension | Spotted B-75 Beast 27045 | -6/Extension | Allies destroyed B-75 Beast 27051 | -6/Extension | Spotted B-75 Beast 27063 | -6/Extension | Allies destroyed B-75 Beast 27081 | -6/Extension | Lost 3 allies 27251 | -6/Extension | Build established: Hacker-Mutant 27534 | -6/Extension | First assault squad dispatched 27953 | -6/Extension | Lost 3 allies 28101 | -6/Extension | Discovered exit to Factory (range 10) 28103 | -6/Extension | Discovered new exit (range 6) 28118 | -6/Extension | Entered Cetus 28118 | -6/Cetus | Accompanied by 1 ally (A7) 28123 | -6/Cetus | Acquired a Cetus Manufacturing Module code from A7 28141 | -6/Cetus | Spotted Cetus Guard 28141 | -6/Cetus | Spotted Cetus Guard 28145 | -6/Cetus | Destroyed Cetus Guard 28145 | -6/Cetus | Spotted Cetus Guard 28151 | -6/Cetus | Allies destroyed Cetus Guard 28153 | -6/Cetus | Destroyed Cetus Guard 28154 | -6/Cetus | Spotted Cetus Guard 28159 | -6/Cetus | Destroyed Cetus Guard 28319 | -6/Cetus | Started Cetus Manufacturing Module 28344 | -6/Cetus | Manufactured an Enhanced Grunt 28344 | -6/Cetus | Escorted A7 to Cetus Mainframe 28369 | -6/Cetus | Manufactured an Enhanced Grunt 28389 | -6/Cetus | Discovered new exit (range 15) 28394 | -6/Cetus | Manufactured an Enhanced Grunt 28419 | -6/Cetus | Manufactured an Enhanced Grunt 28444 | -6/Cetus | Manufactured an Enhanced Grunt 28485 | -6/Cetus | Entered Archives 28485 | -6/Archives | Accompanied by 6 allies (A7) 28490 | -6/Archives | Received a hacking code to weaken MAIN.C 28548 | -6/Archives | Discovered new exit (range 15) 28703 | -6/Archives | Discovered new exit (range 15) 28722 | -6/Archives | Discovered exit to Factory (range 15) 29999 | -6/Archives | Entered Hub_04(d) 29999 | -6/Hub_04(d) | Accompanied by 5 allies 30326 | -6/Hub_04(d) | Garrison activated, responded to threat 30374 | -6/Hub_04(d) | Discovered exit to Factory (range 13) 30926 | -6/Hub_04(d) | Discovered exit to Factory (range 8) 31277 | -6/Hub_04(d) | Discovered exit to Factory (range 3) 31477 | -6/Hub_04(d) | Network Hub disabled 31610 | -6/Hub_04(d) | Network Hub disabled 31661 | -6/Hub_04(d) | System corruption reached 10% 31679 | -6/Hub_04(d) | Spotted Lightning 31680 | -6/Hub_04(d) | Spotted Lightning 31680 | -6/Hub_04(d) | Entered Factory 31680 | -5/Factory | Evolved 2 slots: Propulsion x1, Utility x1 31897 | -5/Factory | Identified exit to Upper Caves 32097 | -5/Factory | Build established: Hacker-Sprinter 32219 | -5/Factory | Discovered new exit (range 14) 32306 | -5/Factory | Identified exit to Factory 32385 | -5/Factory | Fabricated Adv. Hacking Suite (x1) 32523 | -5/Factory | Cargo convoy interrupted 32569 | -5/Factory | Found Prototype Device 32569 | -5/Factory | Identified Exp. ECM Suite 32571 | -5/Factory | Found Prototype Device 32571 | -5/Factory | Identified Exp. Actuator Array 32585 | -5/Factory | Found Prototype Processor 32597 | -5/Factory | Identified Exp. Terrain Scan Processor 32605 | -5/Factory | Found Exp. Actuator Array 32607 | -5/Factory | Found Exp. Terrain Scan Processor 33299 | -5/Factory | Repaired Centrium Medium Armor Plating 33474 | -5/Factory | Spotted B-75 Beast 33589 | -5/Factory | Fabricated Adv. Hacking Suite (x1) 33591 | -5/Factory | Fabricated Adv. Hacking Suite (x1) 33874 | -5/Factory | Repaired Cld. Nuclear Pulse Thruster 33923 | -5/Factory | Repaired Cld. Nuclear Pulse Thruster 33968 | -5/Factory | Repaired Cld. Nuclear Pulse Thruster 34075 | -5/Factory | Fabricated Adv. Hacking Suite (x1) 34080 | -5/Factory | Search patrols dispatched 34154 | -5/Factory | Manually triggered Chute Trap 34154 | -5/Factory | Sucked down chute 34154 | -5/Factory | Entered Waste 34155 | -5/Waste | Joined by Warlord forces that had cleared the area 34193 | -5/Waste | Discovered new exit (range 11) 34195 | -5/Waste | Found Prototype Device 34195 | -5/Waste | Identified Exp. Shield Generator 34248 | -5/Waste | Entered Factory 34248 | -5/Factory | Accompanied by 15 allies 34250 | -5/Factory | Murdered 5 allies 34281 | -5/Factory | Spotted B-75 Beast 34338 | -5/Factory | Discovered exit to Factory (range 13) 34504 | -5/Factory | Repaired Cld. Nuclear Pulse Thruster? 34515 | -5/Factory | Adv. Hacking Suite fried by hacking feedback 34618 | -5/Factory | Garrison activated, responded to threat 34645 | -5/Factory | Lost 5 allies 34719 | -5/Factory | Repaired Cld. Nuclear Pulse Thruster? 34848 | -5/Factory | First assault squad dispatched 34990 | -5/Factory | Fabricated Exp. Hacking Suite (x1) 35031 | -5/Factory | Fabricated Exp. Hacking Suite (x1) 35057 | -5/Factory | Central database locked down 35074 | -5/Factory | Fabricated Exp. Hacking Suite (x1) 35165 | -5/Factory | Repaired Cld. Nuclear Pulse Thruster? 35172 | -5/Factory | Build established: Wizard-Sprinter 35359 | -5/Factory | Fabricated Mni. Smartbomb Launcher (x1) 35423 | -5/Factory | Fabricated Exp. Hacking Suite (x1) 35550 | -5/Factory | Repaired Mic. Fission Core 35660 | -5/Factory | Repaired Centrium Medium Armor Plating 35717 | -5/Factory | Repaired Adv. Cooling System 35840 | -5/Factory | Fabricated Exp. Utility Shielding (x1) 36293 | -5/Factory | Repaired Mic. Fission Core 36435 | -5/Factory | Destroyed 8 combat bots 36612 | -5/Factory | Repaired Cld. Nuclear Pulse Thruster 36648 | -5/Factory | Entered Upper Caves 36715 | -5/Upper Caves | Build established: Hacker-Sprinter 36783 | -5/Upper Caves | Learned Factory trap positions 36812 | -5/Upper Caves | Discovered new exit (range 15) 36823 | -5/Upper Caves | Entered another Upper Caves area 36840 | -5/Upper Caves | Attracted the attention of an 0b10 checkpoint 36894 | -5/Upper Caves | Spotted B-75 Beast 36926 | -5/Upper Caves | Attracted the attention of an 0b10 outpost 36972 | -5/Upper Caves | Learned Factory emergency access door positions 36974 | -5/Upper Caves | Learned Factory emergency access door positions 37053 | -5/Upper Caves | Discovered new exit (range 7) 37054 | -5/Upper Caves | Entered Zhirov 37054 | -5/Zhirov | Discovered new exit (range 4) 37058 | -5/Zhirov | Met Zhirov 37062 | -5/Zhirov | Learned location of Quarantine (-2) 37062 | -5/Zhirov | Learned location of Testing (-3) 37062 | -5/Zhirov | Learned location of Command (-1) 37063 | -5/Zhirov | Zhirov requested help retrieving the SGEMP Prototype 37067 | -5/Zhirov | Found Alien Artifact 37067 | -5/Zhirov | Identified Integrated Reactor 37067 | -5/Zhirov | Installed Integrated Reactor, increased core energy generation (+10) 37078 | -5/Zhirov | Found Alien Artifact 37120 | -5/Zhirov | Entered Proximity Caves 37174 | -4/Proximity Caves | Learned Research terminal intel 37204 | -4/Proximity Caves | Spotter reported a threat 37223 | -4/Proximity Caves | Destroyed 9 combat bots 37237 | -4/Proximity Caves | Attracted the attention of an 0b10 checkpoint 37403 | -4/Proximity Caves | Discovered exit to Factory (range 4) 37404 | -4/Proximity Caves | Entered Factory 37404 | -4/Factory | Evolved 2 slots: Utility x2 37405 | -4/Factory | Loaded intel: 73 trap records 37465 | -4/Factory | Spotted B-86 Titan 37652 | -4/Factory | Spotted B-86 Titan 37654 | -4/Factory | Search patrols dispatched 37934 | -4/Factory | Discovered new exit (range 8) 37976 | -4/Factory | Identified exit to Research 38078 | -4/Factory | Repaired Cld. Nuclear Pulse Thruster? 38083 | -4/Factory | Repaired Mic. Fission Core? 38236 | -4/Factory | Repaired Cld. Nuclear Pulse Thruster? 38237 | -4/Factory | Fabricated Cld. Impulse Thruster (x1) 38249 | -4/Factory | Repaired Centrium Medium Armor Plating? 38270 | -4/Factory | Fabricated Cld. Impulse Thruster (x1) 38348 | -4/Factory | Repaired Mic. Fission Core? 38356 | -4/Factory | Fabricated Cld. Impulse Thruster (x1) 38374 | -4/Factory | Fabricated Cld. Impulse Thruster (x1) 38378 | -4/Factory | Build established: Wizard-Sprinter 38381 | -4/Factory | Fabricated Cld. Impulse Thruster (x1) 38416 | -4/Factory | Identified exit to Upper Caves 38623 | -4/Factory | Fabricated Cld. Impulse Thruster (x1) 38706 | -4/Factory | Spotted Executioner 38707 | -4/Factory | Cargo convoy interrupted 38959 | -4/Factory | Repaired Cld. Impulse Thruster 39020 | -4/Factory | Repaired Nanosword 39070 | -4/Factory | Repaired Mni. Fusion Reactor 39163 | -4/Factory | Repaired Cld. Impulse Thruster? 39252 | -4/Factory | Repaired Cld. Impulse Thruster 39321 | -4/Factory | Repaired Mic. Fission Core? 39385 | -4/Factory | Repaired Cld. Impulse Thruster 39404 | -4/Factory | First assault squad dispatched 39441 | -4/Factory | Repaired Cld. Impulse Thruster 39471 | -4/Factory | Repaired Adv. Cooling System 39904 | -4/Factory | Search patrols dispatched 39966 | -4/Factory | Fabricated Stasis Canceller (x1) 40154 | -4/Factory | Search patrols dispatched 40404 | -4/Factory | Search patrols dispatched 40462 | -4/Factory | Identified exit to Garrison 40464 | -4/Factory | Entered Garrison 40488 | -4/Garrison | Spotted B-86 Titan 40533 | -4/Garrison | Discovered new exit (range 10) 40535 | -4/Garrison | Entered Factory 40729 | -4/Factory | Fabricated Y-64 Sentinel (x2) 40739 | -4/Factory | Fabricated Quantum Shading Machine (x1) 40780 | -4/Factory | Fabricated Graviton Reactor (x1) 40977 | -4/Factory | Spotted B-86 Titan 41018 | -4/Factory | Fabricated C-35 Carver (x3) 41050 | -4/Factory | Fabricated Exp. Melee Analysis Suite (x1) 41076 | -4/Factory | Fabricated Exp. Terrain Scan Processor (x1) 41357 | -4/Factory | Cargo convoy interrupted 41375 | -4/Factory | Found Prototype Launcher 41430 | -4/Factory | Identified Gui. Micro-nuke Launcher 41572 | -4/Factory | Build established: Wizard-Scout 41664 | -4/Factory | Repaired Cld. Impulse Thruster 41722 | -4/Factory | Repaired Cld. Impulse Thruster? 41728 | -4/Factory | Repaired Cld. Impulse Thruster 41765 | -4/Factory | Repaired Graviton Reactor 41803 | -4/Factory | Repaired Centrium Medium Armor Plating 41890 | -4/Factory | Repaired Adv. Reaction Control System 41943 | -4/Factory | Found Heavy Servo Lattice 41997 | -4/Factory | Fabricated Adv. Force Booster (x2) 42014 | -4/Factory | Fabricated Exp. Utility Shielding (x1) 42035 | -4/Factory | First assault squad dispatched 42147 | -4/Factory | Found Mni. Smartbomb Launcher 42300 | -4/Factory | Build established: Machinist-Sprinter 42511 | -4/Factory | Repaired Nanosword 42620 | -4/Factory | Repaired Cld. Impulse Thruster? 42787 | -4/Factory | Repaired Hvy. Phase Cannon 42956 | -4/Factory | Entered Upper Caves 42971 | -4/Upper Caves | Spotted B-86 Titan 42977 | -4/Upper Caves | Learned Research emergency access door positions 43012 | -4/Upper Caves | Encountered a Warlord checkpoint 43060 | -4/Upper Caves | Discovered new exit (range 7) 43062 | -4/Upper Caves | Entered another Upper Caves area 43172 | -4/Upper Caves | Discovered new exit (range 12) 43175 | -4/Upper Caves | Learned 8 Research zone layouts 43199 | -4/Upper Caves | Entered Warlord 43246 | -4/Warlord | Build established: Wizard-Sprinter 43263 | -4/Warlord | Learned 4 Research zone layouts 43263 | -4/Warlord | Learned 4 Quarantine zone layouts 43263 | -4/Warlord | Learned Quarantine security intel 43263 | -4/Warlord | Learned Factory repair station intel 43263 | -4/Warlord | Learned Armory fabricator intel 43263 | -4/Warlord | Learned Armory scanalyzer intel 43263 | -4/Warlord | Learned Research garrison access intel 43323 | -4/Warlord | Met Warlord 43330 | -4/Warlord | Found Prototype Device 43330 | -4/Warlord | Identified Thermal Barrier 43333 | -4/Warlord | Found Prototype Device 43333 | -4/Warlord | Identified Exp. Phase Shifter 43348 | -4/Warlord | Warlord's base attacked by MAIN.C 43390 | -4/Warlord | Found Prototype Piercing Weapon 43393 | -4/Warlord | Found Prototype Piercing Weapon 43395 | -4/Warlord | Identified Vortex Lance (x2) 43546 | -4/Warlord | Discovered new exit (range 14) 43571 | -4/Warlord | Entered Proximity Caves 43626 | -3/Proximity Caves | Discovered exit to Research (range 2) 43627 | -3/Proximity Caves | Entered Research 43627 | -3/Research | Evolved 2 slots: Propulsion x1, Utility x1 43628 | -3/Research | Identified exit to Armory 43628 | -3/Research | Identified exit to Testing 43630 | -3/Research | Loaded intel: 23 terminal locations 43631 | -3/Research | Loaded intel: 4 garrison access locations 43640 | -3/Research | Spotted B-86 Titan 43675 | -3/Research | Discovered exit to Testing (range 24) 43677 | -3/Research | Discovered new exit (range 14) 43877 | -3/Research | First assault squad dispatched 44203 | -3/Research | Fabricated Exp. Melee Analysis Suite? 44225 | -3/Research | Fabricated Femtoactuators? 44390 | -3/Research | Build established: Machinist-Scout 44503 | -3/Research | Fabricated Cld. Impulse Thruster? 44553 | -3/Research | Identified Transdimensional Reconstructor 44648 | -3/Research | Discovered new exit (range 16) 44944 | -3/Research | Fabricated Cld. Impulse Thruster? 44968 | -3/Research | Found Adv. Powered Armor 44971 | -3/Research | Entered another Research area 44971 | -2/Research | Warlord forces began assault on 0b10 44971 | -2/Research | Evolved 2 slots: Utility x1, Weapon x1 44972 | -2/Research | Identified exit to Access 45038 | -2/Research | Fabricated Exp. Hacking Suite? 45041 | -2/Research | Lost 3 allies 45046 | -2/Research | Fabricated Exp. Utility Shielding? 45052 | -2/Research | Met up with Warlord 45069 | -2/Research | Repaired Broken Cld. Impulse Thruster 45081 | -2/Research | Research machine network offline 45111 | -2/Research | Found Exp. Signal Interpreter 45152 | -2/Research | Borebot progress halted 45293 | -2/Research | Discovered exit to Access (range 21) 45319 | -2/Research | Entered Access 45319 | -1/Access | Evolved 2 slots: Utility x1, Weapon x1 45405 | -1/Access | Repaired Mni. Fusion Reactor 45441 | -1/Access | Identified exit to Command 45539 | -1/Access | Repaired Cld. Impulse Thruster 45569 | -1/Access | Search patrols dispatched 45578 | -1/Access | Repaired Cld. Impulse Thruster 45650 | -1/Access | Fabricated Exp. Utility Shielding (x1) 45713 | -1/Access | Discovered new exit (range 11) 46026 | -1/Access | Entered Command 46026 | -1/Command | Accompanied by 1 ally 46065 | -1/Command | Build established: Machinist-Sprinter 46316 | -1/Command | First assault squad dispatched 46390 | -1/Command | Destroyed 7 combat bots 46448 | -1/Command | Repaired Broken Graviton Reactor? 46560 | -1/Command | Repaired Cld. Impulse Thruster 46601 | -1/Command | Repaired Exp. Utility Shielding 46657 | -1/Command | Repaired Cld. Impulse Thruster 46707 | -1/Command | Repaired Mni. Fusion Reactor 46763 | -1/Command | Repaired Cld. Impulse Thruster 46841 | -1/Command | Disengaged cave seal 46841 | -1/Command | Derelicts emerged from the dark tunnel 46841 | -1/Command | Welcomed Warlord to Command 46873 | -1/Command | Disengaged cave seal 46873 | -1/Command | Derelicts emerged from the dark tunnel 47093 | -1/Command | Lost 4 allies 47205 | -1/Command | Warlord commented on Warlord statues 47214 | -1/Command | Spotted M Guard 47214 | -1/Command | Spotted M Guard 47214 | -1/Command | Spotted Combat Programmer 47223 | -1/Command | Spotted Combat Programmer 47274 | -1/Command | Lost 26 allies 47278 | -1/Command | Met MAIN.C 47282 | -1/Command | 0b10 Conduit disabled 47283 | -1/Command | Destroyed MAIN.C Shell 47284 | -1/Command | MAIN.C activated Command garrisons 47338 | -1/Command | Warlord destroyed during the assault 47346 | -1/Command | Destroyed MAIN.C 47347 | -1/Command | Discovered new exit (range 35) 47347 | -1/Command | Discovered new exit (range 100) 47347 | -1/Command | Extracted map data and part IDs from MAIN.C's data core 47378 | -1/Command | Lost 15 parts (2p6n6u1w) 47417 | -1/Command | Spotted B-99 Colossus 47434 | *** | Establishing 0b11! Last Messages --------------- 47347_ Acquired data core, extracted map data and part IDs. 47347_ Cld. Impulse Thruster destroyed. 47350_ Critical hit (Burn: +37). 47355_ System corrupted: Energy discharge (-38). 47360_ K-01 Serf destroyed. 47376_ Acquired Lgt. Quantum Reactor. 47380_ Acquired Adv. Heavy Siege Treads. 47398_ Acquired Impulse Thruster. 47399_ Dropped Adv. Heavy Siege Treads. 47400_ Acquired Impulse Thruster. 47413_ Acquired 2 matter. 47413_ Acquired 48 matter. 47419_ Acquired Q-thruster. 47427_ Penetrated by Slug. 47427_ Impulse Thruster destroyed. 47427_ Penetrated by Slug. 47427_ Slug penetrates Wall. 47427_ Penetrated by Slug. 47430_ Q-thruster destroyed. [Achievement: Commander 0b11] Map ----- +----------------------------------------------------+ | ???????????# #??????????????????? | | ???????????##+##########+######??????????????????? | | ????????????# ######### #####################???? | | ??########### # # #???? | | ??# # # + T#???? | | ??# # # # ############"""##???? | | ??# # ######### # ####"""##???? | | ??# " " + # #][[ =#???? | | ??# ""R"" # # "#]]] ] =#???? | | ??# """"" ### + ""#!!! =#???? | | ??# #?# ##### ""#!!!**==#???? | | ??# #?# """" #???# ""#########???? | | ??###########?# """" #???# ""#???????????? | | ??????????????# """" #???#!! T"#???????????? | | ############### """" #???#!= ""#???????????? | | #???# ""#???????????? | | #???# ""#???????????? | | % #???# ""#???????????? | | % #???# "#???????????? | | #???# #???????????? | | ############ #???# #???????????? | | # ############ #???# #???????????? | | # #??????????# #???# #???????????? | | + #??????????# ###?##+######???????????? | | # #??????????# #??# #????????????????? | | # #??????????# @ #??# #????????????????? | | # ""T"" #??????????# #??# ######???????????? | | # """"" #??????????######??# # #???????????? | | ############??????###########?# # #???????????? | | ################### #?# # #???????????? | | """"""""""" # #?# # #???????????? | | """"T"""" # #?# # #?########### | | # #?# # #?#?????????? | | #####+#+##### # #?#?######### | | #???# + #?#?#""""""" | | #???# ##### # #?#?#"" | | ##### #??##+######?#?#""""" | | ## # #??# #?#?#"""""""" | | ######+############# # #??# #?#?#" " | | #??# #?#?#"" """" | | #??# !!! #?#?#"" """" | | #??# !! #?#?# " """" | | *!! #??# !! #?#?# " | | =! #??# #?#?# " | | !! #??# #?#?#""""""" | | "" #??# #?#?#"" | | ! """" #??# #?#?# | | ##########=! """" #??# #?#?# | | ?????????#! "" * #########/###### | | #######??# %= | +----------------------------------------------------+ Best States ------------- Heat Dissipation 127 Coolant Potential 120 Energy Generation 71 Energy Capacity 430 Matter Stores 300 Matter Capacity 300 Sight Range 22 Robot Scan Range 19 Terrain Scan Range 24 Terrain Scan Density 1010 ECM Strength 3 Power Amplification 40 Additional Mass Support 20 Armor Coverage 1200 Resistance: KI 40 Resistance: EM 30 Utility Shielding 90 Melee Speed Boost 50 Phase Shifting 20 Evasion (%) 101 Melee Accuracy 24 Core Analysis 6 Recoil Reduction 5 Force Boost 40 Offensive Hacking 92 Defensive Hacking 16 Authchip Count 1 Trap Extractor Capacity 8 Item Schematics ----------------- Mic. Nuclear Core | -8/Materials | Scanalyzed Cld. VTOL Module | -7/Factory | Hacked Lrn. Missile Launcher | -7/Factory | Hacked Hvy. Phase Cannon | -7/Factory | Hacked Imp. Trap Extractor | -7/Factory | Hacked Adv. Hacking Suite | -7/Factory | Hacked Cld. Nuclear Pulse Thruster | -7/Factory | Scanalyzed Riot Gun | -7/Zion | Free Battle Rifle | -7/Zion | Free Battle Cannon | -7/Zion | Free Bore Cannon | -7/Zion | Free Flamer | -7/Zion | Free Enh. Flamer | -7/Zion | Free Tiamat Missile Launcher | -6/Factory | Scanalyzed Adv. Cooling System | -6/Factory | Hacked Exp. System Shield | -6/Factory | Scanalyzed Lyr. Light Armor Plating | -6/Factory | Scanalyzed Enh. Fission Core | -6/Factory | Scanalyzed Imp. Heavy Treads | -6/Factory | Hacked Nanosword | -6/Factory | Scanalyzed Com. HERF Cannon | -6/Factory | Scanalyzed Lgt. Particle Reactor | -6/Factory | Scanalyzed Helical Railgun | -5/Factory | Hacked Exp. Actuator Array | -5/Factory | Scanalyzed Exp. Terrain Scan Processor | -5/Factory | Scanalyzed Exp. Utility Shielding | -5/Factory | Hacked Nuclear Pulse Thruster | -5/Factory | Extracted Com. Matter Pod | -5/Factory | Extracted Particle Charger | -5/Factory | Extracted Gauss Rifle | -5/Factory | Extracted Adv. System Shield | -5/Factory | Extracted Gauss Cannon | -5/Factory | Extracted Exp. Hacking Suite | -5/Factory | Hacked Exp. Melee Analysis Suite | -5/Factory | Hacked Cld. Field Propulsion Drive | -5/Factory | Hacked Mni. Smartbomb Launcher | -5/Factory | Hacked Enh. Gauss Cannon | -5/Factory | Extracted Gyrokinetic Inverter | -5/Factory | Extracted Hvy. Shock Bomb Launcher | -5/Factory | Extracted Disruptor Cannon | -5/Factory | Extracted Transmission Jammer | -5/Factory | Extracted Imp. Hardlight Generator | -5/Factory | Extracted Assault Drone Bay | -5/Zhirov | Free Exp. Heat Sink | -5/Zhirov | Free Exp. Optical Array | -5/Zhirov | Free Imp. Arc Thrower | -5/Zhirov | Free Cld. Impulse Thruster | -4/Factory | Hacked Quantum Shading Machine | -4/Factory | Hacked Adv. Force Booster | -4/Factory | Hacked Graviton Reactor | -4/Factory | Hacked Mic. Antimatter Reactor | -4/Factory | Hacked Centrium Heavy Armor Plating | -4/Factory | Hacked Adv. Reaction Control System | -4/Factory | Hacked Stasis Canceller | -4/Factory | Hacked Cld. Q-thruster | -4/Factory | Scanalyzed Gui. Micro-nuke Launcher | -4/Factory | Scanalyzed Biometal Heavy Treads | -4/Factory | Hacked Adv. Power Amplifier | -4/Factory | Hacked Femtoactuators | -3/Research | Hacked Robot Schematics ------------------ None Fabricated ------------ Cld. VTOL Module | x1 | -7/Factory Cld. VTOL Module | x1 | -7/Factory Cld. VTOL Module | x1 | -7/Factory Cld. VTOL Module | x1 | -7/Factory Cld. VTOL Module | x1 | -7/Factory Imp. Trap Extractor | x2 | -7/Factory Cld. VTOL Module | x1 | -7/Factory Adv. Hacking Suite | x1 | -7/Factory Adv. Hacking Suite | x1 | -7/Factory Adv. Hacking Suite | x1 | -7/Factory Hvy. Phase Cannon | x2 | -7/Factory Cld. Nuclear Pulse Thruster | x1 | -6/Factory Cld. Nuclear Pulse Thruster | x1 | -6/Factory Cld. Nuclear Pulse Thruster | x1 | -6/Factory Cld. Nuclear Pulse Thruster | x1 | -6/Factory Adv. Hacking Suite | x1 | -6/Factory G-50 Soldier | x3 | -6/Factory | Preloaded Imp. Heavy Treads | x1 | -6/Factory Imp. Heavy Treads | x1 | -6/Factory Adv. Cooling System | x1 | -6/Factory Lgt. Particle Reactor | x2 | -6/Factory | Preloaded Com. HERF Cannon | x1 | -6/Factory Imp. Heavy Treads | x1 | -6/Factory Adv. Hacking Suite | x1 | -5/Factory Adv. Hacking Suite | x1 | -5/Factory Adv. Hacking Suite | x1 | -5/Factory Adv. Hacking Suite | x1 | -5/Factory Exp. Hacking Suite | x1 | -5/Factory Exp. Hacking Suite | x1 | -5/Factory Exp. Hacking Suite | x1 | -5/Factory | Preloaded Mni. Smartbomb Launcher | x1 | -5/Factory Exp. Hacking Suite | x1 | -5/Factory Exp. Utility Shielding | x1 | -5/Factory Cld. Impulse Thruster | x1 | -4/Factory Cld. Impulse Thruster | x1 | -4/Factory | Authchip Cld. Impulse Thruster | x1 | -4/Factory Cld. Impulse Thruster | x1 | -4/Factory Cld. Impulse Thruster | x1 | -4/Factory Cld. Impulse Thruster | x1 | -4/Factory Stasis Canceller | x1 | -4/Factory Y-64 Sentinel | x2 | -4/Factory | Preloaded Quantum Shading Machine | x1 | -4/Factory Graviton Reactor | x1 | -4/Factory C-35 Carver | x3 | -4/Factory | Preloaded Exp. Melee Analysis Suite | x1 | -4/Factory Exp. Terrain Scan Processor | x1 | -4/Factory Adv. Force Booster | x2 | -4/Factory Exp. Utility Shielding | x1 | -4/Factory Exp. Melee Analysis Suite | x1 | -3/Research Femtoactuators | x1 | -3/Research Cld. Impulse Thruster | x1 | -3/Research Cld. Impulse Thruster | x1 | -3/Research Exp. Hacking Suite | x1 | -2/Research Exp. Utility Shielding | x1 | -2/Research Exp. Utility Shielding | x1 | -1/Access Alien Tech Used ----------------- Integrated Reactor Achievements -------------- Ambidextrous Commander 0b11 Origins Challenges ------------ None Game ------ Seed ArchitectPrecisionUnit Manual? 0 Play Time 10:49:38 Cumulative 275.3 hours Start 2024.03.03 @ 20:20:59 End 2024.03.05 @ 09:01:55 Sessions 9 Manual Loads 0 Difficulty Rogue Special Mode None Game No. 185 Rogue 185 Adventurer 0 Explorer 0 Win Type 1 Total 9 Types 5/1/1/1/0/0/0/1/0 Lore% 68 Gallery% 78 Achievement% 69 Wizard Run 0 Options --------- Layout 0 ASCII 0 Keyboard 1 Movement Numpad Keybinds 0 Fullscreen 2 Font 18/SmallcapsGlow Map View 76x50 Zoom Use 0% Tactical HUD 1 Map Filters NONE Filters NONE Steam 1 RUN: 131f6adc-e5aa-4a23-8fe0-069a92e33a39